NUMERO_MANDATO;RIGA_MANDATO;QUIET;IMPORTO_RIGA;IMPORTO_MANDATO;BENEFICIARIO;CIG;TITOLO_PAGAMENTO;DATA_MANDATO;CAPITOLO;ARTICOLO;NUMERO_IMPEGNO;TITOLO;DESCR_TITOLO;LIVELLO_II;DESCR_LIVELLO_II;LIVELLO_III;DESCR_LIVELLO_III;LIVELLO_IV;DESCR_LIVELLO_IV;LIVELLO_V;DESCR_LIVELLO_V;DATA_PAG_EFF;
394;1;0;"109,80";"109,80";WEB'nGO ITALIA s.r.l.;Z323083F32;Fatt.n. 199 del 24/03/2021 SERVIZI INFORMATICI - 22/3/21 - 21/3/22;06-04-2021;39;0;29;1;Spese correnti;3;Acquisto di beni e servizi;2;Acquisto di servizi;19;Servizi informatici e di telecomunicazioni;1;Gestione e manutenzione applicazioni;06-04-2021;
395;1;0;"272,46";"8.598,98";SOCIETA' CONTARINA S.P.A.;Z1C312054E;Fatt.n. 0000811/VET del 23/03/2021 TARIFFA GESTIONE RIFIUTI URBANI (RSU) - 1 ACCONTO 2021  E CONGUAGLIO 2020;06-04-2021;463;0;87;1;Spese correnti;3;Acquisto di beni e servizi;2;Acquisto di servizi;15;Contratti di servizio pubblico;4;Contratti di servizio per la raccolta rifiuti;06-04-2021;
395;2;0;"396,59";"8.598,98";SOCIETA' CONTARINA S.P.A.;Z1C312054E;Fatt.n. 0000238/VET del 23/03/2021 TARIFFA GESTIONE RIFIUTI URBANI - 1 ACCONTO 2021 E CONGUAGLIO 2020;06-04-2021;463;0;87;1;Spese correnti;3;Acquisto di beni e servizi;2;Acquisto di servizi;15;Contratti di servizio pubblico;4;Contratti di servizio per la raccolta rifiuti;06-04-2021;
395;3;0;"414,83";"8.598,98";SOCIETA' CONTARINA S.P.A.;Z1C312054E;Fatt.n. 0000260/VET del 23/03/2021 TARIFFA GESTIONE RIFIUTI URBANI (RSU) - 1 ACONTO 2021 E CONGUAGLIO 2020;06-04-2021;463;0;87;1;Spese correnti;3;Acquisto di beni e servizi;2;Acquisto di servizi;15;Contratti di servizio pubblico;4;Contratti di servizio per la raccolta rifiuti;06-04-2021;
395;4;0;"414,83";"8.598,98";SOCIETA' CONTARINA S.P.A.;Z1C312054E;Fatt.n. 0000649/VET del 23/03/2021 TARIFFA GESTIONE RIFIUTI URBANI (RSU) - 1 ACCONTO 2021 E CONGUAGLIO 2020;06-04-2021;463;0;87;1;Spese correnti;3;Acquisto di beni e servizi;2;Acquisto di servizi;15;Contratti di servizio pubblico;4;Contratti di servizio per la raccolta rifiuti;06-04-2021;
395;5;0;"437,72";"8.598,98";SOCIETA' CONTARINA S.P.A.;Z1C312054E;Fatt.n. 0000747/VET del 23/03/2021 TARIFFA GESTIONE RIFIUTI URBANI (RSU) - 1 ACCONTO 2021 E CONGUAGLIO 2020;06-04-2021;463;0;87;1;Spese correnti;3;Acquisto di beni e servizi;2;Acquisto di servizi;15;Contratti di servizio pubblico;4;Contratti di servizio per la raccolta rifiuti;06-04-2021;
395;6;0;"462,78";"8.598,98";SOCIETA' CONTARINA S.P.A.;Z1C312054E;Fatt.n. 0000248/VET del 23/03/2021 TARIFFA GESTIONE RIFIUTI URBANI (RSU) - 1 ACCONTO 2021 E CONGUAGLIO 2020;06-04-2021;463;0;87;1;Spese correnti;3;Acquisto di beni e servizi;2;Acquisto di servizi;15;Contratti di servizio pubblico;4;Contratti di servizio per la raccolta rifiuti;06-04-2021;
395;7;0;"467,32";"8.598,98";SOCIETA' CONTARINA S.P.A.;Z1C312054E;Fatt.n. 0000268/VET del 23/03/2021 TARIFFA GESTIONE RIFIUTI URBANI (RSU) -1 ACCONTO 2021 E CONGUAGLIO 2020;06-04-2021;463;0;87;1;Spese correnti;3;Acquisto di beni e servizi;2;Acquisto di servizi;15;Contratti di servizio pubblico;4;Contratti di servizio per la raccolta rifiuti;06-04-2021;
395;8;0;"486,30";"8.598,98";SOCIETA' CONTARINA S.P.A.;Z1C312054E;Fatt.n. 0000821/VET del 23/03/2021 TARIFFA GESTIONE RIFIUTI URBANI (RSU) - 1 ACCONTO 2021 E CONGUAGLIO 2020;06-04-2021;463;0;87;1;Spese correnti;3;Acquisto di beni e servizi;2;Acquisto di servizi;15;Contratti di servizio pubblico;4;Contratti di servizio per la raccolta rifiuti;06-04-2021;
395;9;0;"499,96";"8.598,98";SOCIETA' CONTARINA S.P.A.;Z1C312054E;Fatt.n. 0000387/VET del 23/03/2021 TARIFFA GESTIONE RIFIUTI URBANI (RSU) - 1 ACCONTO 2021 E CONGUAGLIO 2020;06-04-2021;463;0;87;1;Spese correnti;3;Acquisto di beni e servizi;2;Acquisto di servizi;15;Contratti di servizio pubblico;4;Contratti di servizio per la raccolta rifiuti;06-04-2021;
395;10;0;"533,67";"8.598,98";SOCIETA' CONTARINA S.P.A.;Z1C312054E;Fatt.n. 0000526/VET del 23/03/2021 TARIFFA GESTIONE RIFIUTI URBANI (RSU) - 1 ACCONTO 2021 E CONGUAGLIO 2020;06-04-2021;463;0;87;1;Spese correnti;3;Acquisto di beni e servizi;2;Acquisto di servizi;15;Contratti di servizio pubblico;4;Contratti di servizio per la raccolta rifiuti;06-04-2021;
395;11;0;"689,63";"8.598,98";SOCIETA' CONTARINA S.P.A.;Z1C312054E;Fatt.n. 0000816/VET del 23/03/2021 TARIFFA GESTIONE RIFIUTI URBANI (RSU) - 1 ACCONTO 2021 E CONGUALGIO 2020;06-04-2021;463;0;87;1;Spese correnti;3;Acquisto di beni e servizi;2;Acquisto di servizi;15;Contratti di servizio pubblico;4;Contratti di servizio per la raccolta rifiuti;06-04-2021;
395;12;0;"918,25";"8.598,98";SOCIETA' CONTARINA S.P.A.;Z1C312054E;Fatt.n. 0000375/VET del 23/03/2021 TARIFFA GESTIONE RIFIUTI URBANI (RSU) - 1 ACCONTO 2021 E CONGUAGLIO 2020;06-04-2021;463;0;87;1;Spese correnti;3;Acquisto di beni e servizi;2;Acquisto di servizi;15;Contratti di servizio pubblico;4;Contratti di servizio per la raccolta rifiuti;06-04-2021;
395;13;0;"1.287,13";"8.598,98";SOCIETA' CONTARINA S.P.A.;Z1C312054E;Fatt.n. 0000682/VET del 23/03/2021 TARIFFA GESTIONE RIFIUTI URBANI (RSU) - 1 ACCONTO 2021 E CONGUAGLIO 2020;06-04-2021;463;0;87;1;Spese correnti;3;Acquisto di beni e servizi;2;Acquisto di servizi;15;Contratti di servizio pubblico;4;Contratti di servizio per la raccolta rifiuti;06-04-2021;
395;14;0;"1.317,51";"8.598,98";SOCIETA' CONTARINA S.P.A.;Z1C312054E;Fatt.n. 0000801/VET del 23/03/2021 TARIFFA GESTIONE RIFIUTI URBANI (RSU) - 1 ACCONTO 2021 E CONGUALIO 2020;06-04-2021;463;0;87;1;Spese correnti;3;Acquisto di beni e servizi;2;Acquisto di servizi;15;Contratti di servizio pubblico;4;Contratti di servizio per la raccolta rifiuti;06-04-2021;
396;1;0;"215,65";"215,65";POSTE ITALIANE SPA - PROVENTI POLO LOGISTICO;Z03302BD5C;SALDO Fatt.n. 1021060971  del 22/03/2021 PRODOTTI POSTALI;06-04-2021;26;0;45;1;Spese correnti;3;Acquisto di beni e servizi;2;Acquisto di servizi;16;Servizi amministrativi;2;Spese postali;06-04-2021;
397;1;0;"9.028,00";"9.028,00";BATTAGIN IMPIANTI SRL;ZEA2F79D97;Fatt.n. 84/21 del 19/03/2021 IMPIANTO DI RILEVAZIONE INCENDI BARCHESSA VILLA RUBELLI;06-04-2021;780;0;399;2;Spese in conto capitale;2;Investimenti fissi lordi e acquisto di terreni;1;Beni materiali;9;Beni immobili;999;Beni immobili n.a.c.;06-04-2021;
398;1;0;"3.538,00";"3.538,00";CAZZIOLA ROBERTO;ZE62A8B2EF;Fatt.n. FATTPA 4_21 del 18/03/2021 PIANO COMUNALE PROTEZIONE CIVILE;06-04-2021;1045;0;530;2;Spese in conto capitale;2;Investimenti fissi lordi e acquisto di terreni;3;Beni immateriali;5;Incarichi professionali per la realizzazione di investimenti;1;Incarichi professionali per la realizzazione di investimenti;06-04-2021;
399;1;0;"317,20";"317,20";OKCS - OVER KANT CONCEPTION STUDIO S.N.C.;ZC130ABAD8;Fatt.n. 1-PA del 16/03/2021 SISTEMI SOFTWARE;06-04-2021;39;2;44;1;Spese correnti;3;Acquisto di beni e servizi;2;Acquisto di servizi;19;Servizi informatici e di telecomunicazioni;1;Gestione e manutenzione applicazioni;06-04-2021;
400;1;0;"2.575,00";"2.575,00";MAXI DI SRL; ;Fatt.n. 2908002304 del 17/03/2021 ACQUISTO BENI PER EMERGENZA COVID;06-04-2021;563;0;463;1;Spese correnti;3;Acquisto di beni e servizi;1;Acquisto di beni;2;Altri beni di consumo;11;Generi alimentari;06-04-2021;
401;1;0;"59,05";"129,04";MAXI DI SRL; ;Fatt.n. D38521999000044 del 17/03/2021 ACQUISTO BENI PER EMERGENZA COVID;06-04-2021;563;0;126;1;Spese correnti;3;Acquisto di beni e servizi;1;Acquisto di beni;2;Altri beni di consumo;11;Generi alimentari;06-04-2021;
401;2;0;"69,99";"129,04";MAXI DI SRL; ;Fatt.n. D38521999000045 del 18/03/2021 ACQUISTO BENI PER EMERGENZA COVID;06-04-2021;563;0;126;1;Spese correnti;3;Acquisto di beni e servizi;1;Acquisto di beni;2;Altri beni di consumo;11;Generi alimentari;06-04-2021;
402;1;0;"280,60";"280,60";TIPOGRAFIA BATTAGIN SRL;ZE02F90C88;Fatt.n. 1/P del 28/02/2021 FORNITURA MATERIALI;06-04-2021;34;1;391;1;Spese correnti;3;Acquisto di beni e servizi;2;Acquisto di servizi;9;Manutenzione ordinaria e riparazioni;8;Manutenzione ordinaria e riparazioni di beni immobili;06-04-2021;
403;1;0;"70,76";"70,76";SICURITALIA IVRI S.P.A.;Z3827208DE;Fatt.n. 9117003758 del 15/03/2021 SERVIZIO DI PRONTO INTERVENTO - MARZO 2021;06-04-2021;34;0;88;1;Spese correnti;3;Acquisto di beni e servizi;2;Acquisto di servizi;5;Utenze e canoni;999;Utenze e canoni per altri servizi n.a.c.;06-04-2021;
404;1;0;"42,70";"42,70";SICURITALIA IVRI S.P.A.;Z3827208DE;Fatt.n. 9117003758 del 15/03/2021 SERVIZIO DI PRONTO INTERVENTO - MARZO 2021;06-04-2021;71;0;89;1;Spese correnti;3;Acquisto di beni e servizi;2;Acquisto di servizi;5;Utenze e canoni;999;Utenze e canoni per altri servizi n.a.c.;06-04-2021;
405;1;0;"141,52";"141,52";SICURITALIA IVRI S.P.A.;Z3827208DE;Fatt.n. 9117003758 del 15/03/2021 SERVIZIO DI PRONTO INTERVENTO - MARZO 2021;06-04-2021;235;0;92;1;Spese correnti;3;Acquisto di beni e servizi;2;Acquisto di servizi;5;Utenze e canoni;999;Utenze e canoni per altri servizi n.a.c.;06-04-2021;
406;1;0;"141,52";"141,52";SICURITALIA IVRI S.P.A.;Z3827208DE;Fatt.n. 9117003758 del 15/03/2021 SERVIZIO DI PRONTO INTERVENTO - MARZO 2021;06-04-2021;252;0;91;1;Spese correnti;3;Acquisto di beni e servizi;2;Acquisto di servizi;5;Utenze e canoni;999;Utenze e canoni per altri servizi n.a.c.;06-04-2021;
407;1;0;"85,40";"85,40";SICURITALIA IVRI S.P.A.;Z3827208DE;Fatt.n. 9117003758 del 15/03/2021 SERVIZIO DI PRONTO INTERVENTO - MARZO 2021;06-04-2021;310;0;93;1;Spese correnti;3;Acquisto di beni e servizi;2;Acquisto di servizi;5;Utenze e canoni;999;Utenze e canoni per altri servizi n.a.c.;06-04-2021;
408;1;0;"42,70";"42,70";SICURITALIA IVRI S.P.A.;Z3827208DE;Fatt.n. 9117003758 del 15/03/2021 SERVIZIO DI PRONTO INTERVENTO - MARZO 2021;06-04-2021;313;2;94;1;Spese correnti;3;Acquisto di beni e servizi;2;Acquisto di servizi;5;Utenze e canoni;999;Utenze e canoni per altri servizi n.a.c.;06-04-2021;
409;1;0;"42,70";"42,70";SICURITALIA IVRI S.P.A.;Z3827208DE;Fatt.n. 9117003758 del 15/03/2021 SERVIZIO DI PRONTO INTERVENTO - MARZO 2021;06-04-2021;561;2;90;1;Spese correnti;3;Acquisto di beni e servizi;2;Acquisto di servizi;5;Utenze e canoni;999;Utenze e canoni per altri servizi n.a.c.;06-04-2021;
410;1;0;"9.760,00";"9.760,00";FASAN ANNA;Z152CE6F0C;Fatt.n. 1 del 09/03/2021 ACCONTO MANUTENZIONE CIMITERI;06-04-2021;413;1;275;1;Spese correnti;3;Acquisto di beni e servizi;2;Acquisto di servizi;9;Manutenzione ordinaria e riparazioni;8;Manutenzione ordinaria e riparazioni di beni immobili;06-04-2021;
411;1;0;"177,60";"177,60";PLT PUREGREEN;7134285639;Fatt.n. 20210040001509 del 12/03/2021 FORNITURA ENERGIA ELETTRICA - FEBBRAIO 2021;06-04-2021;34;0;207;1;Spese correnti;3;Acquisto di beni e servizi;2;Acquisto di servizi;5;Utenze e canoni;4;Energia elettrica;06-04-2021;
412;1;0;"107,50";"107,50";PLT PUREGREEN;7134285639;Fatt.n. 20210040001503 del 12/03/2021 FORNITURA ENERGIA ELETTRICA - FEBBRAIO 2021;06-04-2021;71;0;208;1;Spese correnti;3;Acquisto di beni e servizi;2;Acquisto di servizi;5;Utenze e canoni;4;Energia elettrica;06-04-2021;
413;1;0;"206,76";"466,09";PLT PUREGREEN;7134285639;Fatt.n. 20210040001514 del 12/03/2021 FORNITURA ENERGIA ELETTRICA - FEBBRAIO 2021;06-04-2021;235;0;209;1;Spese correnti;3;Acquisto di beni e servizi;2;Acquisto di servizi;5;Utenze e canoni;4;Energia elettrica;06-04-2021;
413;2;0;"259,33";"466,09";PLT PUREGREEN;7134285639;Fatt.n. 20210040001510 del 12/03/2021 FORNITURA ENERGIA ELETTRICA - FEBBRAIO 2021;06-04-2021;235;0;209;1;Spese correnti;3;Acquisto di beni e servizi;2;Acquisto di servizi;5;Utenze e canoni;4;Energia elettrica;06-04-2021;
414;1;0;"1.275,41";"1.275,41";PLT PUREGREEN;7134285639;Fatt.n. 20210040001512 del 12/03/2021 FORNITURA ENERGIA ELETTRICA - FEBBRAIO 2021;06-04-2021;252;0;210;1;Spese correnti;3;Acquisto di beni e servizi;2;Acquisto di servizi;5;Utenze e canoni;4;Energia elettrica;06-04-2021;
415;1;0;"571,56";"571,56";PLT PUREGREEN;7134285639;Fatt.n. 20210040001501 del 12/03/2021 FORNITURA ENERGIA ELETTRICA - FEBBRAIO 2021;06-04-2021;310;0;212;1;Spese correnti;3;Acquisto di beni e servizi;2;Acquisto di servizi;5;Utenze e canoni;4;Energia elettrica;06-04-2021;
416;1;0;"61,50";"309,08";PLT PUREGREEN;7134285639;Fatt.n. 20210040001513 del 12/03/2021 FORNITURA ENERGIA ELETTRICA - FEBBRAIO 2021;06-04-2021;413;0;211;1;Spese correnti;3;Acquisto di beni e servizi;2;Acquisto di servizi;5;Utenze e canoni;4;Energia elettrica;06-04-2021;
416;2;0;"68,79";"309,08";PLT PUREGREEN;7134285639;Fatt.n. 20210040001511 del 12/03/2021 FORNITURA ENERGIA ELETTRICA - FEBBRAIO 2021;06-04-2021;413;0;211;1;Spese correnti;3;Acquisto di beni e servizi;2;Acquisto di servizi;5;Utenze e canoni;4;Energia elettrica;06-04-2021;
416;3;0;"87,84";"309,08";PLT PUREGREEN;7134285639;Fatt.n. 20210040001504 del 12/03/2021 FORNITURA ENERGIA ELETTRICA - FEBBRAIO 2021;06-04-2021;413;0;211;1;Spese correnti;3;Acquisto di beni e servizi;2;Acquisto di servizi;5;Utenze e canoni;4;Energia elettrica;06-04-2021;
416;4;0;"90,95";"309,08";PLT PUREGREEN;7134285639;Fatt.n. 20210040001508 del 12/03/2021 FORNITURA ENERGIA ELETTRICA - FEBBRAIO 2021;06-04-2021;413;0;211;1;Spese correnti;3;Acquisto di beni e servizi;2;Acquisto di servizi;5;Utenze e canoni;4;Energia elettrica;06-04-2021;
417;1;0;"215,84";"1.055,36";PLT PUREGREEN;7134285639;Fatt.n. 20210040001505 del 12/03/2021 FORNITURA ENERGIA ELETTRICA - FEBBRAIO 2021;06-04-2021;530;0;214;1;Spese correnti;3;Acquisto di beni e servizi;2;Acquisto di servizi;5;Utenze e canoni;4;Energia elettrica;06-04-2021;
417;2;0;"839,52";"1.055,36";PLT PUREGREEN;7134285639;Fatt.n. 20210040001502 del 12/03/2021 FORNITURA ENERGIA ELETTRICA - FEBBRAIO 2021;06-04-2021;530;0;214;1;Spese correnti;3;Acquisto di beni e servizi;2;Acquisto di servizi;5;Utenze e canoni;4;Energia elettrica;06-04-2021;
418;1;0;"89,55";"448,75";PLT PUREGREEN;7134285639;Fatt.n. 20210040001507 del 12/03/2021 FORNITURA ENERGIA ELETTRICA - FEBBRAIO 2021;06-04-2021;561;2;215;1;Spese correnti;3;Acquisto di beni e servizi;2;Acquisto di servizi;5;Utenze e canoni;4;Energia elettrica;06-04-2021;
418;2;0;"359,20";"448,75";PLT PUREGREEN;7134285639;Fatt.n. 20210040001515 del 12/03/2021 FORNITURA ENERGIA ELETTRICA - FEBBRAIO 2021;06-04-2021;561;2;215;1;Spese correnti;3;Acquisto di beni e servizi;2;Acquisto di servizi;5;Utenze e canoni;4;Energia elettrica;06-04-2021;
419;1;0;"8.170,60";"8.170,60";PLT PUREGREEN;7134285639;Fatt.n. 20210040001506 del 12/03/2021 FORNITURA ENERGIA ELETTRICA - FEBBRAIO 2021;06-04-2021;600;0;216;1;Spese correnti;3;Acquisto di beni e servizi;2;Acquisto di servizi;5;Utenze e canoni;4;Energia elettrica;06-04-2021;
420;1;0;"64,42";"64,42";FERRONATO S.R.L.;Z7C26AD935;Fatt.n. P1 del 28/02/2021 FORNITURA METERIALI;06-04-2021;531;0;279;1;Spese correnti;3;Acquisto di beni e servizi;1;Acquisto di beni;2;Altri beni di consumo;999;Altri beni e materiali di consumo n.a.c.;06-04-2021;
421;1;0;"283,74";"283,74";CISL VENETO SERVIZI S.R.L.;ZA930BE066;Fatt.n. TVP/66 del 11/03/2021 ADEMPIMENTI PER UFF. SOCIALE - FEBBRAIO 2021;06-04-2021;559;0;42;1;Spese correnti;3;Acquisto di beni e servizi;2;Acquisto di servizi;99;Altri servizi;999;Altri servizi diversi n.a.c.;06-04-2021;
422;1;0;"770,00";"770,00";BM ANALISI MEDICHE S.R.L.;Z722FA780D;Fatt.n. 2 del 11/03/2021;06-04-2021;152;1;406;1;Spese correnti;3;Acquisto di beni e servizi;2;Acquisto di servizi;18;Servizi sanitari;1;Spese per accertamenti sanitari resi necessari dall'attività lavorativa;06-04-2021;
456;1;0;"5.961,21";"5.961,21";AMMINISTRATORI COMUNALI; ;STIPENDI MESE DI: APRILE 21;13-04-2021;2;0;1;1;Spese correnti;3;Acquisto di beni e servizi;2;Acquisto di servizi;1;Organi e incarichi istituzionali dell'amministrazione;1;Organi istituzionali dell'amministrazione - Indennità;13-04-2021;
460;1;0;"42,16";"42,16";MAXI DI SRL; ;Fatt.n. D38521999000049 del 25/03/2021 Negozio MAXI DI SRL - D+ SAN ZENONE 31020 SAN ZENONE DEGLI EZZELINI TV;15-04-2021;563;0;463;1;Spese correnti;3;Acquisto di beni e servizi;1;Acquisto di beni;2;Altri beni di consumo;11;Generi alimentari;15-04-2021;
461;1;0;"1.781,82";"1.781,82";UNICOOPER SERVIZI S.C.R.L.;ZA530DF999;Fatt.n. 293 del 28/02/2021 PULIZIA EDIFICI COMUNALI - FEBBRAIO 2021;15-04-2021;34;2;61;1;Spese correnti;3;Acquisto di beni e servizi;2;Acquisto di servizi;13;Servizi ausiliari per il funzionamento dell'ente;2;Servizi di pulizia e lavanderia;15-04-2021;
462;1;0;"1.026,56";"1.026,56";NOIGROUP Coop. Soc. a R.L.;ZDE2A28443;"Fatt.n. 94 del 28/02/2021 APERTURA, CHIUSURA MUSEO - FEBBRAIO 2021";15-04-2021;303;0;490;1;Spese correnti;3;Acquisto di beni e servizi;2;Acquisto di servizi;99;Altri servizi;999;Altri servizi diversi n.a.c.;15-04-2021;
463;1;0;"30.945,50";"30.945,50";A.T.E.R. - AZIENDA TERRIT. EDILIZIA RESIDENZIALE; ;Fatt.n. G9/2021 del 04/02/2021 LOCAZIONE IMMOBILE  - ANNO 2021;15-04-2021;561;0;77;1;Spese correnti;3;Acquisto di beni e servizi;2;Acquisto di servizi;7;Utilizzo di beni di terzi;1;Locazione di beni immobili;15-04-2021;
464;1;0;"1.026,56";"1.026,56";NOIGROUP Coop. Soc. a R.L.;ZDE2A28443;SALDO Fatt.n. 205  del 31/03/2021 SERVIZIO AL MUSEO MARZO 2021;16-04-2021;303;0;490;1;Spese correnti;3;Acquisto di beni e servizi;2;Acquisto di servizi;99;Altri servizi;999;Altri servizi diversi n.a.c.;16-04-2021;
465;1;0;"9.244,17";"9.244,17";U.L.S.S.   N. 2 MARCA TREVIGIANA; ;TUTELA SOCIALE MINORILE - ANNO 2020. SALDO IMPORTO DOVUTO TERZO QUADRIMESTRE.;16-04-2021;580;0;405;1;Spese correnti;4;Trasferimenti correnti;1;Trasferimenti correnti a Amministrazioni Pubbliche;2;Trasferimenti correnti a Amministrazioni Locali;20;Trasferimenti correnti a Aziende sanitarie locali  a titolo di finanziamento del servizio sanitario nazionale;16-04-2021;
470;1;0;"-3,86";"95,94";ENEL ENERGIA S.P.A.;7134285639;SALDO Fatt.n. 003076345707  del 15/11/2019 FATTURA ENEL A STORNO;19-04-2021;600;0;433;1;Spese correnti;3;Acquisto di beni e servizi;2;Acquisto di servizi;5;Utenze e canoni;4;Energia elettrica;19-04-2021;
470;2;0;"-3,48";"95,94";ENEL ENERGIA S.P.A.;7134285639;SALDO Fatt.n. 003076345695  del 15/11/2019 FATTURA ENEL A STORNO;19-04-2021;600;0;433;1;Spese correnti;3;Acquisto di beni e servizi;2;Acquisto di servizi;5;Utenze e canoni;4;Energia elettrica;19-04-2021;
470;3;0;"-2,68";"95,94";ENEL ENERGIA S.P.A.;7134285639;SALDO Fatt.n. 003076345691  del 15/11/2019 FATTURA ENEL A STORNO;19-04-2021;600;0;433;1;Spese correnti;3;Acquisto di beni e servizi;2;Acquisto di servizi;5;Utenze e canoni;4;Energia elettrica;19-04-2021;
470;4;0;"-2,10";"95,94";ENEL ENERGIA S.P.A.;7134285639;SALDO Fatt.n. 003076345688  del 15/11/2019 FATTURA ENEL A STORNO;19-04-2021;600;0;433;1;Spese correnti;3;Acquisto di beni e servizi;2;Acquisto di servizi;5;Utenze e canoni;4;Energia elettrica;19-04-2021;
470;5;0;"-1,79";"95,94";ENEL ENERGIA S.P.A.;7134285639;SALDO Fatt.n. 003076345706  del 15/11/2019 FATTURA ENEL A STORNO;19-04-2021;600;0;433;1;Spese correnti;3;Acquisto di beni e servizi;2;Acquisto di servizi;5;Utenze e canoni;4;Energia elettrica;19-04-2021;
470;6;0;"-1,76";"95,94";ENEL ENERGIA S.P.A.;7134285639;SALDO Fatt.n. 003076345697  del 15/11/2019 FATTURA A STORNO ENEL;19-04-2021;600;0;433;1;Spese correnti;3;Acquisto di beni e servizi;2;Acquisto di servizi;5;Utenze e canoni;4;Energia elettrica;19-04-2021;
470;7;0;"-1,68";"95,94";ENEL ENERGIA S.P.A.;7134285639;SALDO Fatt.n. 003076345708  del 15/11/2019 FATTURA ENEL A STORNO;19-04-2021;600;0;433;1;Spese correnti;3;Acquisto di beni e servizi;2;Acquisto di servizi;5;Utenze e canoni;4;Energia elettrica;19-04-2021;
470;8;0;"-1,50";"95,94";ENEL ENERGIA S.P.A.;7134285639;SALDO Fatt.n. 003076345699  del 15/11/2019 FATTURA ENEL A STORNO;19-04-2021;600;0;433;1;Spese correnti;3;Acquisto di beni e servizi;2;Acquisto di servizi;5;Utenze e canoni;4;Energia elettrica;19-04-2021;
470;9;0;"-1,13";"95,94";ENEL ENERGIA S.P.A.;7134285639;SALDO Fatt.n. 003076345698  del 15/11/2019 FATTURA ENEL A STORNO;19-04-2021;600;0;433;1;Spese correnti;3;Acquisto di beni e servizi;2;Acquisto di servizi;5;Utenze e canoni;4;Energia elettrica;19-04-2021;
470;10;0;"-1,11";"95,94";ENEL ENERGIA S.P.A.;7134285639;SALDO Fatt.n. 003076345701  del 15/11/2019 FATTURA A STORNO ENEL;19-04-2021;600;0;433;1;Spese correnti;3;Acquisto di beni e servizi;2;Acquisto di servizi;5;Utenze e canoni;4;Energia elettrica;19-04-2021;
470;11;0;"-0,95";"95,94";ENEL ENERGIA S.P.A.;7134285639;SALDO Fatt.n. 003076345689  del 15/11/2019 FATTURA ENEL A STORNO;19-04-2021;600;0;433;1;Spese correnti;3;Acquisto di beni e servizi;2;Acquisto di servizi;5;Utenze e canoni;4;Energia elettrica;19-04-2021;
470;12;0;"-0,82";"95,94";ENEL ENERGIA S.P.A.;7134285639;SALDO Fatt.n. 003076345703  del 15/11/2019 FATTURA ENEL A STORNO;19-04-2021;600;0;433;1;Spese correnti;3;Acquisto di beni e servizi;2;Acquisto di servizi;5;Utenze e canoni;4;Energia elettrica;19-04-2021;
470;13;0;"-0,66";"95,94";ENEL ENERGIA S.P.A.;7134285639;SALDO Fatt.n. 003076345709  del 15/11/2019 FATTURA A STORNO ENEL;19-04-2021;600;0;433;1;Spese correnti;3;Acquisto di beni e servizi;2;Acquisto di servizi;5;Utenze e canoni;4;Energia elettrica;19-04-2021;
470;14;0;"-0,54";"95,94";ENEL ENERGIA S.P.A.;7134285639;SALDO Fatt.n. 003076345705  del 15/11/2019 FATTURA ENEL A STORNO;19-04-2021;600;0;433;1;Spese correnti;3;Acquisto di beni e servizi;2;Acquisto di servizi;5;Utenze e canoni;4;Energia elettrica;19-04-2021;
470;15;0;"-0,52";"95,94";ENEL ENERGIA S.P.A.;7134285639;SALDO Fatt.n. 003076345700  del 15/11/2019 FATTURA ENEL A STORNO;19-04-2021;600;0;433;1;Spese correnti;3;Acquisto di beni e servizi;2;Acquisto di servizi;5;Utenze e canoni;4;Energia elettrica;19-04-2021;
470;16;0;"-0,41";"95,94";ENEL ENERGIA S.P.A.;7134285639;SALDO Fatt.n. 003076345692  del 15/11/2019 FATTURA ENEL A STORNO;19-04-2021;600;0;433;1;Spese correnti;3;Acquisto di beni e servizi;2;Acquisto di servizi;5;Utenze e canoni;4;Energia elettrica;19-04-2021;
470;17;0;"-0,35";"95,94";ENEL ENERGIA S.P.A.;7134285639;SALDO Fatt.n. 003076345694  del 15/11/2019 FATTURA A STORNO ENEL;19-04-2021;600;0;433;1;Spese correnti;3;Acquisto di beni e servizi;2;Acquisto di servizi;5;Utenze e canoni;4;Energia elettrica;19-04-2021;
470;18;0;"-0,23";"95,94";ENEL ENERGIA S.P.A.;7134285639;SALDO Fatt.n. 003076345702  del 15/11/2019 FATTURA ENEL A STORNO;19-04-2021;600;0;433;1;Spese correnti;3;Acquisto di beni e servizi;2;Acquisto di servizi;5;Utenze e canoni;4;Energia elettrica;19-04-2021;
470;19;0;"-0,16";"95,94";ENEL ENERGIA S.P.A.;7134285639;SALDO Fatt.n. 003076345696  del 15/11/2019 FATTURA ENEL A STORNO;19-04-2021;600;0;433;1;Spese correnti;3;Acquisto di beni e servizi;2;Acquisto di servizi;5;Utenze e canoni;4;Energia elettrica;19-04-2021;
470;20;0;"-0,16";"95,94";ENEL ENERGIA S.P.A.;7134285639;SALDO Fatt.n. 003076345710  del 15/11/2019 FATTURA ENEL A STORNO;19-04-2021;600;0;433;1;Spese correnti;3;Acquisto di beni e servizi;2;Acquisto di servizi;5;Utenze e canoni;4;Energia elettrica;19-04-2021;
470;21;0;"-0,09";"95,94";ENEL ENERGIA S.P.A.;7134285639;SALDO Fatt.n. 003076345704  del 15/11/2019 FATTURA ENEL A STORNO;19-04-2021;600;0;433;1;Spese correnti;3;Acquisto di beni e servizi;2;Acquisto di servizi;5;Utenze e canoni;4;Energia elettrica;19-04-2021;
470;22;0;"-0,07";"95,94";ENEL ENERGIA S.P.A.;7134285639;SALDO Fatt.n. 003076345693  del 15/11/2019 FATTURA ENEL A STORNO;19-04-2021;600;0;433;1;Spese correnti;3;Acquisto di beni e servizi;2;Acquisto di servizi;5;Utenze e canoni;4;Energia elettrica;19-04-2021;
470;23;0;"-0,01";"95,94";ENEL ENERGIA S.P.A.;7134285639;SALDO Fatt.n. 003076345690  del 15/11/2019 FATTURA ENEL A STORNO;19-04-2021;600;0;433;1;Spese correnti;3;Acquisto di beni e servizi;2;Acquisto di servizi;5;Utenze e canoni;4;Energia elettrica;19-04-2021;
470;24;0;"122,00";"95,94";ENEL ENERGIA S.P.A.;7134285639;SALDO Fatt.n. 008403120738  del 21/08/2018 ALLACCIAMENTO ENEL ENERGIA IN VIA MONTEGRAPPA;19-04-2021;600;0;433;1;Spese correnti;3;Acquisto di beni e servizi;2;Acquisto di servizi;5;Utenze e canoni;4;Energia elettrica;19-04-2021;
471;1;0;"75,14";"75,14";OMESSO NOMINATIVO NEL RISPETTO DELLA NORMATIVA SULLA PROTEZIONE DATI PERSONALI; ;LIQUIDAZIONE UTENTE C. G. PER FATTURA N. 154/B DEL 08.04.2021 PASTI MARZO 2021.;19-04-2021;576;0;34;1;Spese correnti;4;Trasferimenti correnti;2;Trasferimenti correnti a Famiglie;2;Interventi assistenziali;999;Altri assegni e sussidi assistenziali;19-04-2021;
472;1;0;"327,62";"327,62";OMESSO NOMINATIVO NEL RISPETTO DELLA NORMATIVA SULLA PROTEZIONE DATI PERSONALI; ;LIQUIDAZIONE UTENTE F. R. PER FATTURA N. 156/B DEL 08.04.2021 PER PASTI MARZO 2021.;19-04-2021;576;0;431;1;Spese correnti;4;Trasferimenti correnti;2;Trasferimenti correnti a Famiglie;2;Interventi assistenziali;999;Altri assegni e sussidi assistenziali;19-04-2021;
473;1;0;"134,44";"134,44";OMESSO NOMINATIVO NEL RISPETTO DELLA NORMATIVA SULLA PROTEZIONE DATI PERSONALI; ;LIQUIDAZIONE UTENTE G.C. FT. 263556805039019 DEL 07.04.2021 "SERVIZIO ELETTRICO NAZIONALE".;22-04-2021;576;0;34;1;Spese correnti;4;Trasferimenti correnti;2;Trasferimenti correnti a Famiglie;2;Interventi assistenziali;999;Altri assegni e sussidi assistenziali;22-04-2021;
474;1;0;"6.200,00";"6.200,00";PIAZZA NADIA;ZC42E72CFB;Fatt.n. 1 del 09/04/2021 INTERVENTO ARCHIVIO DEL COMUNE PER TRASFERIMENTO SEDE;22-04-2021;21;2;317;1;Spese correnti;3;Acquisto di beni e servizi;2;Acquisto di servizi;11;Prestazioni professionali e specialistiche;999;Altre prestazioni professionali e specialistiche n.a.c.;22-04-2021;
475;1;0;"215,00";"215,00";SUPERMERCATO FACCHIN DI FACCHIN A. & S.a.S.; ;Fatt.n. FPA 6/21 del 31/03/2021 BUONI ALIMENTARI X COVID;22-04-2021;563;0;464;1;Spese correnti;3;Acquisto di beni e servizi;1;Acquisto di beni;2;Altri beni di consumo;11;Generi alimentari;22-04-2021;
476;1;0;"4.367,20";"4.367,20";CASA DI RIPOSO 'AITA'; ;Fatt.n. 161/B del 09/04/2021 SERVIZIO DI A.D. - MARZO 2021;22-04-2021;562;1;240;1;Spese correnti;3;Acquisto di beni e servizi;2;Acquisto di servizi;15;Contratti di servizio pubblico;9;Contratti di servizio di assistenza sociale domiciliare;22-04-2021;
477;1;0;"3.123,66";"3.123,66";CASA DI RIPOSO 'AITA'; ;Fatt.n. 179/C del 07/04/2021 PASTI MENSA - MARZO 2021;22-04-2021;274;1;472;1;Spese correnti;3;Acquisto di beni e servizi;2;Acquisto di servizi;15;Contratti di servizio pubblico;6;Contratti di servizio per le mense scolastiche;22-04-2021;
478;1;0;"1.872,20";"1.872,20";NOIGROUP Coop. Soc. a R.L.;8551409DEF;Fatt.n. 202 del 31/03/2021 GESTIONE BIBLIOTECA - MARZO 2021;22-04-2021;302;1;28;1;Spese correnti;3;Acquisto di beni e servizi;2;Acquisto di servizi;16;Servizi amministrativi;999;Altre spese per servizi amministrativi;22-04-2021;
479;1;0;"274,09";"274,09";FARMACIE PIU' DI S.A.S. DT RI C. E N.; ;Fatt.n. 10C del 31/03/2021 ACQUISTO BENI PER EMERGENZA COVID;22-04-2021;563;0;468;1;Spese correnti;3;Acquisto di beni e servizi;1;Acquisto di beni;2;Altri beni di consumo;11;Generi alimentari;22-04-2021;
480;1;0;"442,93";"442,93";PROVINCIA DI TREVISO;8599156803;GARA SERVIZIO DI TRASPORTO SCOLASTICO ANNI DAL 2021 AL 2024. RIMBORSO ALLA STAZIONE UNICA APPALTANTE DELLA PROVINCIA DI TREVISO SPESE DI PUBBLICAZIONE ESTRATTO BANDO DI GARA.;22-04-2021;34;3;10;1;Spese correnti;3;Acquisto di beni e servizi;2;Acquisto di servizi;16;Servizi amministrativi;1;Pubblicazione bandi di gara;22-04-2021;
482;1;0;"24,00";"24,00";AZIENDA U.L.S.S. N.2  MARCA TREVIGIANA; ;IMPEGNO DI SPESA PER LE PRESTAZIONI EFFETTUATE DAL SERVIZIO VETERINARIO DELLAZIENDA ULSS 2 MARCA TREVIGIANA PRESSO IL CANILE SANITARIO;23-04-2021;180;0;64;1;Spese correnti;3;Acquisto di beni e servizi;2;Acquisto di servizi;15;Contratti di servizio pubblico;11;Contratti di servizio per la lotta al randagismo;23-04-2021;
483;1;0;"423,95";"423,95";SCHINDLER S.P.A.;Z2B2BBF164;SALDO Fatt.n. 349583856  del 31/03/2021 Canone di manutenzione per impianti elevatori;26-04-2021;561;4;37;1;Spese correnti;3;Acquisto di beni e servizi;2;Acquisto di servizi;9;Manutenzione ordinaria e riparazioni;4;Manutenzione ordinaria e riparazioni di impianti e macchinari;26-04-2021;
484;1;0;"36.360,56";"36.360,56";NOMINATIVI DIVERSI; ;LIQUIDAZIONE AI BENEFICIARI FONDO PER IL SOSTEGNO ALLE ABITAZIONI IN LOCAZIONE FSA 2020.;26-04-2021;502;0;371;1;Spese correnti;4;Trasferimenti correnti;2;Trasferimenti correnti a Famiglie;2;Interventi assistenziali;999;Altri assegni e sussidi assistenziali;26-04-2021;
485;1;0;"2.000,00";"2.000,00";NOMINATIVI DIVERSI; ;LIQUIDAZIONE AI BENEFICIARI FONDO PER IL SOSTEGNO ALLE ABITAZIONI IN LOCAZIONE FSA 2020.;26-04-2021;576;0;370;1;Spese correnti;4;Trasferimenti correnti;2;Trasferimenti correnti a Famiglie;2;Interventi assistenziali;999;Altri assegni e sussidi assistenziali;26-04-2021;
486;1;0;"618,70";"618,70";NOMINATIVI DIVERSI; ;LIQUIDAZIONE AI BENEFICIARI FONDO PER IL SOSTEGNO ALLE ABITAZIONI IN LOCAZIONE FSA 2020.;26-04-2021;576;0;495;1;Spese correnti;4;Trasferimenti correnti;2;Trasferimenti correnti a Famiglie;2;Interventi assistenziali;999;Altri assegni e sussidi assistenziali;26-04-2021;
487;1;0;"1.830,00";"1.830,00";F.LLI ZANANDREA SNC di ZANANDREA LORIS E LERI;Z412ECBE92;SALDO Fatt.n. 1/PA  del 14/04/2021 LAVORI AULE PLESSO SCOLASTICO;27-04-2021;775;0;338;2;Spese in conto capitale;2;Investimenti fissi lordi e acquisto di terreni;1;Beni materiali;9;Beni immobili;3;Fabbricati ad uso scolastico;27-04-2021;
488;1;0;"1.781,82";"1.781,82";UNICOOPER SERVIZI S.C.R.L.;ZA530DF999;SALDO Fatt.n. 581  del 31/03/2021 PULIZIE  ED. COMUNALI - MARZO 2021;27-04-2021;34;2;61;1;Spese correnti;3;Acquisto di beni e servizi;2;Acquisto di servizi;13;Servizi ausiliari per il funzionamento dell'ente;2;Servizi di pulizia e lavanderia;27-04-2021;
489;1;0;"1.043,50";"1.043,50";F.LLI MICHIELIN S.N.C.;ZD33112900;SALDO Fatt.n. 7/PA  del 01/04/2021 RIPARAZIONE TRATTORINO TOSAERBA;27-04-2021;589;1;79;1;Spese correnti;3;Acquisto di beni e servizi;2;Acquisto di servizi;9;Manutenzione ordinaria e riparazioni;5;Manutenzione ordinaria e riparazioni di attrezzature;27-04-2021;
490;1;0;"8.540,92";"8.540,92";A.S. DI ANDREATTA GIUSEPPE & C. S.R.L.;ZCB2E84552;SALDO Fatt.n. 265  del 31/03/2021 AUTOMAZIONE CANCELLI INGRESSO CIMITERI;27-04-2021;898;0;320;2;Spese in conto capitale;2;Investimenti fissi lordi e acquisto di terreni;1;Beni materiali;9;Beni immobili;15;Cimiteri;27-04-2021;
491;1;0;"150,00";"150,00";ALFA ANTINCENDIO S.R.L.;ZA5276F7AD;ACCONTO Fatt.n. 39  del 31/03/2021 CONTROLLO SEMESTRALE ESTINTORI;27-04-2021;561;4;132;1;Spese correnti;3;Acquisto di beni e servizi;2;Acquisto di servizi;9;Manutenzione ordinaria e riparazioni;5;Manutenzione ordinaria e riparazioni di attrezzature;27-04-2021;
492;1;0;"300,00";"300,00";ALFA ANTINCENDIO S.R.L.;ZA5276F7AD;ACCONTO Fatt.n. 39  del 31/03/2021 CONTROLLO SEMESTRALE ESTINTORI;27-04-2021;310;2;124;1;Spese correnti;3;Acquisto di beni e servizi;2;Acquisto di servizi;13;Servizi ausiliari per il funzionamento dell'ente;999;Altri servizi ausiliari n.a.c.;27-04-2021;
493;1;0;"500,00";"500,00";ALFA ANTINCENDIO S.R.L.;ZA5276F7AD;ACCONTO Fatt.n. 39  del 31/03/2021 CONTROLLO SEMESTRALE ESTINTORI;27-04-2021;34;1;125;1;Spese correnti;3;Acquisto di beni e servizi;2;Acquisto di servizi;9;Manutenzione ordinaria e riparazioni;5;Manutenzione ordinaria e riparazioni di attrezzature;27-04-2021;
494;1;0;"244,78";"244,78";ALFA ANTINCENDIO S.R.L.;ZA5276F7AD;SALDO Fatt.n. 39  del 31/03/2021 CONTROLLO SEMESTRALE ESTINTORI;27-04-2021;561;4;126;1;Spese correnti;3;Acquisto di beni e servizi;2;Acquisto di servizi;9;Manutenzione ordinaria e riparazioni;5;Manutenzione ordinaria e riparazioni di attrezzature;27-04-2021;
495;1;0;"251,63";"251,63";BELLNET INTERNATIONAL S.R.L.;Z752BFBD5F;SALDO Fatt.n. FATTPA 713_21  del 31/03/2021 TRAFFICO TELEFONICO - APRILE 2021;27-04-2021;34;0;58;1;Spese correnti;3;Acquisto di beni e servizi;2;Acquisto di servizi;5;Utenze e canoni;1;Telefonia fissa;27-04-2021;
496;1;0;"257,42";"257,42";OLIVETTI S.P.A.;ZC92648F71;ACCONTO Fatt.n. A20020211000012018  del 31/03/2021 CANONE DI NOLEGGIO: GENN-MARZO 2021;27-04-2021;252;0;509;1;Spese correnti;3;Acquisto di beni e servizi;2;Acquisto di servizi;5;Utenze e canoni;999;Utenze e canoni per altri servizi n.a.c.;27-04-2021;
497;1;0;"932,74";"932,74";OLIVETTI S.P.A.;ZC92648F71;ACCONTO Fatt.n. A20020211000012018  del 31/03/2021 CANONE DI NOLEGGIO: GENN-MARZO 2021;27-04-2021;34;0;508;1;Spese correnti;3;Acquisto di beni e servizi;2;Acquisto di servizi;5;Utenze e canoni;999;Utenze e canoni per altri servizi n.a.c.;27-04-2021;
498;1;0;"772,26";"772,26";OLIVETTI S.P.A.;ZC92648F71;SALDO Fatt.n. A20020211000012018  del 31/03/2021 CANONE DI NOLEGGIO: GENN-MARZO 2021;27-04-2021;235;0;510;1;Spese correnti;3;Acquisto di beni e servizi;2;Acquisto di servizi;5;Utenze e canoni;999;Utenze e canoni per altri servizi n.a.c.;27-04-2021;
499;1;0;"-252,00";"250,00";COMAUTO AUTODEMOLIZIONI SRL;Z572CF5D71;Fatt.n. 58/27/21 del 25/03/2021 NOTA DI CREDITO A STORNO FT N. 58/23/21 DEL 09.03.2021;27-04-2021;178;1;167;1;Spese correnti;3;Acquisto di beni e servizi;2;Acquisto di servizi;13;Servizi ausiliari per il funzionamento dell'ente;999;Altri servizi ausiliari n.a.c.;27-04-2021;
499;2;0;"250,00";"250,00";COMAUTO AUTODEMOLIZIONI SRL;Z572CF5D71;Fatt.n. 58/28/21 del 26/03/2021 RECUPERO E RITIRO VEICOLI PER DEMOLIZIONE;27-04-2021;178;1;167;1;Spese correnti;3;Acquisto di beni e servizi;2;Acquisto di servizi;13;Servizi ausiliari per il funzionamento dell'ente;999;Altri servizi ausiliari n.a.c.;27-04-2021;
499;3;0;"252,00";"250,00";COMAUTO AUTODEMOLIZIONI SRL;Z572CF5D71;Fatt.n. 58/23/21 del 09/03/2021 RIPARAZIONI AUTO;27-04-2021;178;1;167;1;Spese correnti;3;Acquisto di beni e servizi;2;Acquisto di servizi;13;Servizi ausiliari per il funzionamento dell'ente;999;Altri servizi ausiliari n.a.c.;27-04-2021;
500;1;0;"720,00";"720,00";NOIGROUP Coop. Soc. a R.L.;Z5F268727B;Fatt.n. 95 del 28/02/2021 GESTONE BIBLIOTECA - FEBBRAIO 2021;27-04-2021;302;1;28;1;Spese correnti;3;Acquisto di beni e servizi;2;Acquisto di servizi;16;Servizi amministrativi;999;Altre spese per servizi amministrativi;27-04-2021;
501;1;0;"659,23";"2.174,92";BIM PIAVE NUOVE ENERGIE S.R.L.; ;SALDO Fatt.n. 9000908  del 31/03/2021 acqua calda 01/01/2021-28/02/2021 - Ex Scuola Sopracastello;27-04-2021;561;2;106;1;Spese correnti;3;Acquisto di beni e servizi;2;Acquisto di servizi;5;Utenze e canoni;6;Gas;27-04-2021;
501;2;0;"1.515,69";"2.174,92";BIM PIAVE NUOVE ENERGIE S.R.L.; ;SALDO Fatt.n. 9000910  del 31/03/2021  acqua calda 01/01/2021-28/02/2021 - Polivalente "La Roggia";27-04-2021;561;2;106;1;Spese correnti;3;Acquisto di beni e servizi;2;Acquisto di servizi;5;Utenze e canoni;6;Gas;27-04-2021;
502;1;0;"2.248,55";"2.248,55";BIM PIAVE NUOVE ENERGIE S.R.L.; ;SALDO Fatt.n. 9000914  del 31/03/2021  acqua calda 01/01/2021-28/02/2021 - Palestra;27-04-2021;530;0;105;1;Spese correnti;3;Acquisto di beni e servizi;2;Acquisto di servizi;5;Utenze e canoni;6;Gas;27-04-2021;
503;1;0;"3.426,99";"3.426,99";BIM PIAVE NUOVE ENERGIE S.R.L.; ;SALDO Fatt.n. 9000909  del 31/03/2021 acqua calda 01/01/2021-28/02/2021 - Villa Rubelli;27-04-2021;310;0;104;1;Spese correnti;3;Acquisto di beni e servizi;2;Acquisto di servizi;5;Utenze e canoni;6;Gas;27-04-2021;
504;1;0;"7.315,66";"7.315,66";BIM PIAVE NUOVE ENERGIE S.R.L.; ;SALDO Fatt.n. 9000911  del 31/03/2021  acqua calda 01/01/2021-28/02/2021 - Scuola Secondaria/Primaria;27-04-2021;252;0;103;1;Spese correnti;3;Acquisto di beni e servizi;2;Acquisto di servizi;5;Utenze e canoni;6;Gas;27-04-2021;
505;1;0;"1.312,06";"3.069,78";BIM PIAVE NUOVE ENERGIE S.R.L.; ;SALDO Fatt.n. 9000912  del 31/03/2021 acqua calda 01/01/2021-28/02/2021 - Scuola Primaria;27-04-2021;235;0;102;1;Spese correnti;3;Acquisto di beni e servizi;2;Acquisto di servizi;5;Utenze e canoni;6;Gas;27-04-2021;
505;2;0;"1.757,72";"3.069,78";BIM PIAVE NUOVE ENERGIE S.R.L.; ;SALDO Fatt.n. 9000913  del 31/03/2021 acqua calda 01/01/2021-28/02/2021 - Scuola Primaria;27-04-2021;235;0;102;1;Spese correnti;3;Acquisto di beni e servizi;2;Acquisto di servizi;5;Utenze e canoni;6;Gas;27-04-2021;
506;1;0;"1.399,58";"1.399,58";BIM PIAVE NUOVE ENERGIE S.R.L.; ;SALDO Fatt.n. 9000907  del 31/03/2021 acqua calda 01/01/2021-28/02/2021 - Sede Municipale;27-04-2021;34;0;101;1;Spese correnti;3;Acquisto di beni e servizi;2;Acquisto di servizi;5;Utenze e canoni;6;Gas;27-04-2021;
507;1;0;"-2.265,10";"2.265,10";E.N.P.A. ENTE NAZIONALE PROTEZIONE ANIMALI ONLUS;Z3F2C6A54F;SALDO Fatt.n. 410/PA  del 02/03/2021 NOTA DI CREDITO;28-04-2021;180;0;133;1;Spese correnti;3;Acquisto di beni e servizi;2;Acquisto di servizi;15;Contratti di servizio pubblico;11;Contratti di servizio per la lotta al randagismo;28-04-2021;
507;2;0;"2.265,10";"2.265,10";E.N.P.A. ENTE NAZIONALE PROTEZIONE ANIMALI ONLUS;Z3F2C6A54F;SALDO Fatt.n. 149/PA  del 03/02/2021 CUSTODIA E MANTENIMENTO CANI OTTOBRE - DICEMBRE 2020;28-04-2021;180;0;133;1;Spese correnti;3;Acquisto di beni e servizi;2;Acquisto di servizi;15;Contratti di servizio pubblico;11;Contratti di servizio per la lotta al randagismo;28-04-2021;
507;3;0;"2.265,10";"2.265,10";E.N.P.A. ENTE NAZIONALE PROTEZIONE ANIMALI ONLUS;Z3F2C6A54F;SALDO Fatt.n. 411/PA  del 02/03/2021 CUSTODIA E MANTENIMENTO CANI - OTTOBRE -DICEMBRE 2020;28-04-2021;180;0;133;1;Spese correnti;3;Acquisto di beni e servizi;2;Acquisto di servizi;15;Contratti di servizio pubblico;11;Contratti di servizio per la lotta al randagismo;28-04-2021;
508;1;0;"51,38";"294,29";KUWAIT PETROLEUM ITALIA S.P.A.;Z4E197F01F;SALDO Fatt.n. PJ03756404  del 31/03/2021 CARBURANTE AUTO OPERAI - MARZO 2021;28-04-2021;590;0;111;1;Spese correnti;3;Acquisto di beni e servizi;1;Acquisto di beni;2;Altri beni di consumo;2;"Carburanti, combustibili e lubrificanti";28-04-2021;
508;2;0;"242,91";"294,29";KUWAIT PETROLEUM ITALIA S.P.A.;Z4E197F01F;SALDO Fatt.n. PJ03756403  del 31/03/2021 CARBURANTE AUTO PROT. CIVILE - MARZO 2021;28-04-2021;590;0;111;1;Spese correnti;3;Acquisto di beni e servizi;1;Acquisto di beni;2;Altri beni di consumo;2;"Carburanti, combustibili e lubrificanti";28-04-2021;
509;1;0;"67,00";"67,00";KUWAIT PETROLEUM ITALIA S.P.A.;Z4E197F01F;SALDO Fatt.n. PJ03756406  del 31/03/2021 CARBURANTE AUTO VIGILI - MARZO 2021;28-04-2021;179;0;109;1;Spese correnti;3;Acquisto di beni e servizi;1;Acquisto di beni;2;Altri beni di consumo;2;"Carburanti, combustibili e lubrificanti";28-04-2021;
510;1;0;"127,99";"127,99";KUWAIT PETROLEUM ITALIA S.P.A.;Z4E197F01F;SALDO Fatt.n. PJ03756405  del 31/03/2021 CARBURANTE AUTO UFF. SOCIALE - MARZO 2021;28-04-2021;571;0;110;1;Spese correnti;3;Acquisto di beni e servizi;1;Acquisto di beni;2;Altri beni di consumo;2;"Carburanti, combustibili e lubrificanti";28-04-2021;
511;1;0;"104,84";"104,84";PLT PUREGREEN;7134285639;SALDO Fatt.n. 20210040002070  del 13/04/2021 FORNITURA ENERGIA ELETTRICA - MARZO 2021;28-04-2021;34;0;207;1;Spese correnti;3;Acquisto di beni e servizi;2;Acquisto di servizi;5;Utenze e canoni;4;Energia elettrica;28-04-2021;
512;1;0;"105,14";"105,14";PLT PUREGREEN;7134285639;SALDO Fatt.n. 20210040002064  del 13/04/2021 FORNITURA ENERGIA ELETTRICA - MARZO 2021;28-04-2021;71;0;208;1;Spese correnti;3;Acquisto di beni e servizi;2;Acquisto di servizi;5;Utenze e canoni;4;Energia elettrica;28-04-2021;
513;1;0;"155,38";"419,30";PLT PUREGREEN;7134285639;SALDO Fatt.n. 20210040002075  del 13/04/2021 FORNITURA ENERGIA ELETTRICA - MARZO 2021;28-04-2021;235;0;209;1;Spese correnti;3;Acquisto di beni e servizi;2;Acquisto di servizi;5;Utenze e canoni;4;Energia elettrica;28-04-2021;
513;2;0;"263,92";"419,30";PLT PUREGREEN;7134285639;SALDO Fatt.n. 20210040002071  del 13/04/2021 FORNITURA ENERGIA ELETTRICA - MARZO 2021;28-04-2021;235;0;209;1;Spese correnti;3;Acquisto di beni e servizi;2;Acquisto di servizi;5;Utenze e canoni;4;Energia elettrica;28-04-2021;
514;1;0;"1.177,78";"1.177,78";PLT PUREGREEN;7134285639;SALDO Fatt.n. 20210040002073  del 13/04/2021 FORNITURA ENERGIA ELETTRICA - MARZO 2021;28-04-2021;252;0;210;1;Spese correnti;3;Acquisto di beni e servizi;2;Acquisto di servizi;5;Utenze e canoni;4;Energia elettrica;28-04-2021;
515;1;0;"576,94";"576,94";PLT PUREGREEN;7134285639;SALDO Fatt.n. 20210040002062  del 13/04/2021 FORNITURA ENERGIA ELETTRICA - MARZO 2021;28-04-2021;310;0;212;1;Spese correnti;3;Acquisto di beni e servizi;2;Acquisto di servizi;5;Utenze e canoni;4;Energia elettrica;28-04-2021;
516;1;0;"204,99";"782,89";PLT PUREGREEN;7134285639;SALDO Fatt.n. 20210040002066  del 13/04/2021 FORNITURA ENERGIA ELETTRICA - MARZO 2021;28-04-2021;530;0;214;1;Spese correnti;3;Acquisto di beni e servizi;2;Acquisto di servizi;5;Utenze e canoni;4;Energia elettrica;28-04-2021;
516;2;0;"577,90";"782,89";PLT PUREGREEN;7134285639;SALDO Fatt.n. 20210040002063  del 13/04/2021 FORNITURA ENERGIA ELETTRICA - MARZO 2021;28-04-2021;530;0;214;1;Spese correnti;3;Acquisto di beni e servizi;2;Acquisto di servizi;5;Utenze e canoni;4;Energia elettrica;28-04-2021;
517;1;0;"78,33";"430,44";PLT PUREGREEN;7134285639;SALDO Fatt.n. 20210040002068  del 13/04/2021 FORNITURA ENERGIA ELETTRICA - MARZO 2021;28-04-2021;561;2;215;1;Spese correnti;3;Acquisto di beni e servizi;2;Acquisto di servizi;5;Utenze e canoni;4;Energia elettrica;28-04-2021;
517;2;0;"352,11";"430,44";PLT PUREGREEN;7134285639;SALDO Fatt.n. 20210040002076  del 13/04/2021 FORNITURA ENERGIA ELETTRICA - MARZO 2021;28-04-2021;561;2;215;1;Spese correnti;3;Acquisto di beni e servizi;2;Acquisto di servizi;5;Utenze e canoni;4;Energia elettrica;28-04-2021;
518;1;0;"8.158,62";"8.158,62";PLT PUREGREEN;7134285639;SALDO Fatt.n. 20210040002067  del 13/04/2021  FORNITURA ENERGIA ELETTRICA - MARZO 2021;28-04-2021;600;0;216;1;Spese correnti;3;Acquisto di beni e servizi;2;Acquisto di servizi;5;Utenze e canoni;4;Energia elettrica;28-04-2021;
519;1;0;"319.560,85";"319.560,85";MAZZON COSTRUZIONI GENERALI SRL;85231852C4;SALDO Fatt.n. 000001/0CPA  del 24/03/2021 ADEGUAMENTO SISMICO ED EFF.ENERGETICO DEL PALAZZO MUNICIPALE;29-04-2021;744;0;437;2;Spese in conto capitale;2;Investimenti fissi lordi e acquisto di terreni;1;Beni materiali;9;Beni immobili;19;Fabbricati ad uso strumentale;29-04-2021;
520;1;0;"387,35";"387,35";INFOTEAM SRL;ZAB3163F11;SALDO Fatt.n. 00000001354  del 22/04/2021 INTERVENTO TECNICO;29-04-2021;33;1;118;1;Spese correnti;3;Acquisto di beni e servizi;2;Acquisto di servizi;9;Manutenzione ordinaria e riparazioni;11;Manutenzione ordinaria e riparazioni di altri beni materiali;29-04-2021;
521;1;0;"30.000,00";"30.000,00";TIEGI S.R.L.;Z5D304F0E0;SALDO Fatt.n. 66  del 25/03/2021 ACQUISTO GIOSTRE PER PARCO GIOCHI;29-04-2021;890;0;522;2;Spese in conto capitale;2;Investimenti fissi lordi e acquisto di terreni;1;Beni materiali;5;Attrezzature;999;Attrezzature n.a.c.;29-04-2021;
522;1;0;"610,00";"610,00";HALLEY VENETO SRL;Z732FC84DF;SALDO Fatt.n. 1/210605  del 19/03/2021 CANONE MY CALENDAR - ANNO 2021;29-04-2021;39;2;425;1;Spese correnti;3;Acquisto di beni e servizi;2;Acquisto di servizi;19;Servizi informatici e di telecomunicazioni;5;Servizi per i sistemi e relativa manutenzione;29-04-2021;
523;1;0;"15.616,00";"15.616,00";HALLEY VENETO SRL;Z0826B1CF8;ACCONTO Fatt.n. 1/210335  del 27/01/2021 CANONE MANUTENZIONE SOFTWARE APPLICATIVO - 01/01/2021-31/12/2021;29-04-2021;39;0;18;1;Spese correnti;3;Acquisto di beni e servizi;2;Acquisto di servizi;19;Servizi informatici e di telecomunicazioni;1;Gestione e manutenzione applicazioni;29-04-2021;
524;1;0;"5.612,00";"5.612,00";HALLEY VENETO SRL;Z0826B1CF8;SALDO Fatt.n. 1/210335  del 27/01/2021 CANONE MANUTENZIONE SOFTWARE APPLICATIVO - 01/01/2021-31/12/2021;29-04-2021;39;0;19;1;Spese correnti;3;Acquisto di beni e servizi;2;Acquisto di servizi;19;Servizi informatici e di telecomunicazioni;1;Gestione e manutenzione applicazioni;29-04-2021;
525;1;0;"2.998,46";"2.998,46";INFOTEAM SRL;ZFA30BF059;Fatt.n. 00000001231 del 31/03/2021 FT. DI VENDITA P.A.;29-04-2021;746;0;49;2;Spese in conto capitale;2;Investimenti fissi lordi e acquisto di terreni;1;Beni materiali;7;Hardware;999;Hardware n.a.c.;29-04-2021;
526;1;0;"-361,90";"361,90";LA IDROFERRAMENTA SRL;Z3D2D0846B;SALDO Fatt.n. 30/PA  del 17/04/2021 NOTA DI CREDITO A STORNO FT N. 27/PA DEL 31.03.2021 PER CIG ERRATO;30-04-2021;591;0;110;1;Spese correnti;3;Acquisto di beni e servizi;1;Acquisto di beni;2;Altri beni di consumo;999;Altri beni e materiali di consumo n.a.c.;30-04-2021;
526;2;0;"361,90";"361,90";LA IDROFERRAMENTA SRL;Z3D2D0846B;SALDO Fatt.n. 27/PA  del 31/03/2021 FORNITURA MATERIALE;30-04-2021;591;0;110;1;Spese correnti;3;Acquisto di beni e servizi;1;Acquisto di beni;2;Altri beni di consumo;999;Altri beni e materiali di consumo n.a.c.;30-04-2021;
526;3;0;"361,90";"361,90";LA IDROFERRAMENTA SRL;Z3D2D0846B;SALDO Fatt.n. 31/PA  del 17/04/2021 MATERIALE UTENSILE;30-04-2021;591;0;110;1;Spese correnti;3;Acquisto di beni e servizi;1;Acquisto di beni;2;Altri beni di consumo;999;Altri beni e materiali di consumo n.a.c.;30-04-2021;
527;1;0;"26.392,46";"26.392,46";CRESTANI COSTRUZIONI GENERALI S.R.L.;Z0C312D1D5;Fatt.n. FATTPA 10_21 del 19/04/2021 LAVORI DI ASFALTATURA STRADE COMUNALI;30-04-2021;1007;0;97;2;Spese in conto capitale;2;Investimenti fissi lordi e acquisto di terreni;1;Beni materiali;9;Beni immobili;12;Infrastrutture stradali;30-04-2021;
529;1;0;"236,52";"236,52";OMESSO NOMINATIVO NEL RISPETTO DELLA NORMATIVA SULLA PROTEZIONE DATI PERSONALI; ;LIQUIDAZIONE UTENTE G. C. FT. 663/0000405 DEL 01.04.2021 CONTARINA SPA;03-05-2021;576;0;34;1;Spese correnti;4;Trasferimenti correnti;2;Trasferimenti correnti a Famiglie;2;Interventi assistenziali;999;Altri assegni e sussidi assistenziali;03-05-2021;
531;1;0;"1.676,00";"1.676,00";CASA DI RIPOSO 'AITA'; ;Fatt.n. 168/B del 15/04/2021 PRESTAZIONI SOCIALI L.V. - MARZO 2021;04-05-2021;560;0;43;1;Spese correnti;3;Acquisto di beni e servizi;2;Acquisto di servizi;15;Contratti di servizio pubblico;8;Contratti di servizio di assistenza sociale residenziale e semiresidenziale;04-05-2021;
532;1;0;"28,06";"28,06";SICURITALIA IVRI S.P.A.;Z3827208DE;SALDO Fatt.n. 9117004333  del 31/03/2021 SERVIZI ISPETTIVI MARZO 2021;04-05-2021;235;0;92;1;Spese correnti;3;Acquisto di beni e servizi;2;Acquisto di servizi;5;Utenze e canoni;999;Utenze e canoni per altri servizi n.a.c.;04-05-2021;
533;1;0;"-70,76";"70,76";SICURITALIA IVRI S.P.A.;Z3827208DE;SALDO Fatt.n. 9117005667  del 22/04/2021 PRONTO INTERVENTO - APRILE 2021;04-05-2021;34;0;88;1;Spese correnti;3;Acquisto di beni e servizi;2;Acquisto di servizi;5;Utenze e canoni;999;Utenze e canoni per altri servizi n.a.c.;04-05-2021;
533;2;0;"70,76";"70,76";SICURITALIA IVRI S.P.A.;Z3827208DE;ACCONTO Fatt.n. 9117005305  del 14/04/2021 SERVIZIO DI PRONTO INTERVENTO - APRILE 2021;04-05-2021;34;0;88;1;Spese correnti;3;Acquisto di beni e servizi;2;Acquisto di servizi;5;Utenze e canoni;999;Utenze e canoni per altri servizi n.a.c.;04-05-2021;
533;3;0;"70,76";"70,76";SICURITALIA IVRI S.P.A.;Z3827208DE;ACCONTO Fatt.n. 9117005669  del 22/04/2021 PRONTO INTERVENTO - APRILE 2021;04-05-2021;34;0;88;1;Spese correnti;3;Acquisto di beni e servizi;2;Acquisto di servizi;5;Utenze e canoni;999;Utenze e canoni per altri servizi n.a.c.;04-05-2021;
534;1;0;"-42,70";"42,70";SICURITALIA IVRI S.P.A.;Z3827208DE;SALDO Fatt.n. 9117005667  del 22/04/2021 PRONTO INTERVENTO - APRILE 2021;04-05-2021;71;0;89;1;Spese correnti;3;Acquisto di beni e servizi;2;Acquisto di servizi;5;Utenze e canoni;999;Utenze e canoni per altri servizi n.a.c.;04-05-2021;
534;2;0;"42,70";"42,70";SICURITALIA IVRI S.P.A.;Z3827208DE;ACCONTO Fatt.n. 9117005305  del 14/04/2021 SERVIZIO DI PRONTO INTERVENTO - APRILE 2021;04-05-2021;71;0;89;1;Spese correnti;3;Acquisto di beni e servizi;2;Acquisto di servizi;5;Utenze e canoni;999;Utenze e canoni per altri servizi n.a.c.;04-05-2021;
534;3;0;"42,70";"42,70";SICURITALIA IVRI S.P.A.;Z3827208DE;ACCONTO Fatt.n. 9117005669  del 22/04/2021 PRONTO INTERVENTO - APRILE 2021;04-05-2021;71;0;89;1;Spese correnti;3;Acquisto di beni e servizi;2;Acquisto di servizi;5;Utenze e canoni;999;Utenze e canoni per altri servizi n.a.c.;04-05-2021;
535;1;0;"-42,70";"42,70";SICURITALIA IVRI S.P.A.;Z3827208DE;SALDO Fatt.n. 9117005667  del 22/04/2021 PRONTO INTERVENTO - APRILE 2021;04-05-2021;561;2;90;1;Spese correnti;3;Acquisto di beni e servizi;2;Acquisto di servizi;5;Utenze e canoni;999;Utenze e canoni per altri servizi n.a.c.;04-05-2021;
535;2;0;"42,70";"42,70";SICURITALIA IVRI S.P.A.;Z3827208DE;ACCONTO Fatt.n. 9117005305  del 14/04/2021 SERVIZIO DI PRONTO INTERVENTO - APRILE 2021;04-05-2021;561;2;90;1;Spese correnti;3;Acquisto di beni e servizi;2;Acquisto di servizi;5;Utenze e canoni;999;Utenze e canoni per altri servizi n.a.c.;04-05-2021;
535;3;0;"42,70";"42,70";SICURITALIA IVRI S.P.A.;Z3827208DE;ACCONTO Fatt.n. 9117005669  del 22/04/2021 PRONTO INTERVENTO - APRILE 2021;04-05-2021;561;2;90;1;Spese correnti;3;Acquisto di beni e servizi;2;Acquisto di servizi;5;Utenze e canoni;999;Utenze e canoni per altri servizi n.a.c.;04-05-2021;
536;1;0;"-141,52";"53,68";SICURITALIA IVRI S.P.A.;Z3827208DE;SALDO Fatt.n. 9117005667  del 22/04/2021 PRONTO INTERVENTO - APRILE 2021;04-05-2021;252;0;91;1;Spese correnti;3;Acquisto di beni e servizi;2;Acquisto di servizi;5;Utenze e canoni;999;Utenze e canoni per altri servizi n.a.c.;04-05-2021;
536;2;0;"53,68";"53,68";SICURITALIA IVRI S.P.A.;Z3827208DE;ACCONTO Fatt.n. 9117005305  del 14/04/2021 SERVIZIO DI PRONTO INTERVENTO - APRILE 2021;04-05-2021;252;0;91;1;Spese correnti;3;Acquisto di beni e servizi;2;Acquisto di servizi;5;Utenze e canoni;999;Utenze e canoni per altri servizi n.a.c.;04-05-2021;
536;3;0;"141,52";"53,68";SICURITALIA IVRI S.P.A.;Z3827208DE;ACCONTO Fatt.n. 9117005669  del 22/04/2021 PRONTO INTERVENTO - APRILE 2021;04-05-2021;252;0;91;1;Spese correnti;3;Acquisto di beni e servizi;2;Acquisto di servizi;5;Utenze e canoni;999;Utenze e canoni per altri servizi n.a.c.;04-05-2021;
537;1;0;"-141,52";"141,52";SICURITALIA IVRI S.P.A.;Z3827208DE;SALDO Fatt.n. 9117005667  del 22/04/2021 PRONTO INTERVENTO - APRILE 2021;04-05-2021;235;0;92;1;Spese correnti;3;Acquisto di beni e servizi;2;Acquisto di servizi;5;Utenze e canoni;999;Utenze e canoni per altri servizi n.a.c.;04-05-2021;
537;2;0;"141,52";"141,52";SICURITALIA IVRI S.P.A.;Z3827208DE;ACCONTO Fatt.n. 9117005305  del 14/04/2021 SERVIZIO DI PRONTO INTERVENTO - APRILE 2021;04-05-2021;235;0;92;1;Spese correnti;3;Acquisto di beni e servizi;2;Acquisto di servizi;5;Utenze e canoni;999;Utenze e canoni per altri servizi n.a.c.;04-05-2021;
537;3;0;"141,52";"141,52";SICURITALIA IVRI S.P.A.;Z3827208DE;ACCONTO Fatt.n. 9117005669  del 22/04/2021 PRONTO INTERVENTO - APRILE 2021;04-05-2021;235;0;92;1;Spese correnti;3;Acquisto di beni e servizi;2;Acquisto di servizi;5;Utenze e canoni;999;Utenze e canoni per altri servizi n.a.c.;04-05-2021;
538;1;0;"-64,66";"85,40";SICURITALIA IVRI S.P.A.;Z3827208DE;SALDO Fatt.n. 9117005667  del 22/04/2021 PRONTO INTERVENTO - APRILE 2021;04-05-2021;310;0;93;1;Spese correnti;3;Acquisto di beni e servizi;2;Acquisto di servizi;5;Utenze e canoni;999;Utenze e canoni per altri servizi n.a.c.;04-05-2021;
538;2;0;"64,66";"85,40";SICURITALIA IVRI S.P.A.;Z3827208DE;ACCONTO Fatt.n. 9117005305  del 14/04/2021 SERVIZIO DI PRONTO INTERVENTO - APRILE 2021;04-05-2021;310;0;93;1;Spese correnti;3;Acquisto di beni e servizi;2;Acquisto di servizi;5;Utenze e canoni;999;Utenze e canoni per altri servizi n.a.c.;04-05-2021;
538;3;0;"85,40";"85,40";SICURITALIA IVRI S.P.A.;Z3827208DE;ACCONTO Fatt.n. 9117005669  del 22/04/2021 PRONTO INTERVENTO - APRILE 2021;04-05-2021;310;0;93;1;Spese correnti;3;Acquisto di beni e servizi;2;Acquisto di servizi;5;Utenze e canoni;999;Utenze e canoni per altri servizi n.a.c.;04-05-2021;
539;1;0;"-42,70";"42,70";SICURITALIA IVRI S.P.A.;Z3827208DE;SALDO Fatt.n. 9117005667  del 22/04/2021 PRONTO INTERVENTO - APRILE 2021;04-05-2021;313;2;94;1;Spese correnti;3;Acquisto di beni e servizi;2;Acquisto di servizi;5;Utenze e canoni;999;Utenze e canoni per altri servizi n.a.c.;04-05-2021;
539;2;0;"42,70";"42,70";SICURITALIA IVRI S.P.A.;Z3827208DE;ACCONTO Fatt.n. 9117005305  del 14/04/2021 SERVIZIO DI PRONTO INTERVENTO - APRILE 2021;04-05-2021;313;2;94;1;Spese correnti;3;Acquisto di beni e servizi;2;Acquisto di servizi;5;Utenze e canoni;999;Utenze e canoni per altri servizi n.a.c.;04-05-2021;
539;3;0;"42,70";"42,70";SICURITALIA IVRI S.P.A.;Z3827208DE;SALDO Fatt.n. 9117005669  del 22/04/2021 PRONTO INTERVENTO - APRILE 2021;04-05-2021;313;2;94;1;Spese correnti;3;Acquisto di beni e servizi;2;Acquisto di servizi;5;Utenze e canoni;999;Utenze e canoni per altri servizi n.a.c.;04-05-2021;
540;1;0;"87,84";"87,84";SICURITALIA IVRI S.P.A.;Z3827208DE;SALDO Fatt.n. 9117005305  del 14/04/2021 SERVIZIO DI PRONTO INTERVENTO - APRILE 2021;06-05-2021;252;0;170;1;Spese correnti;3;Acquisto di beni e servizi;2;Acquisto di servizi;5;Utenze e canoni;999;Utenze e canoni per altri servizi n.a.c.;06-05-2021;
541;1;0;"2.440,00";"2.440,00";VENETIAN CLUSTER S.R.L.;ZBC2FFDED9;Fatt.n. 5/001 del 28/04/2021 INCARICO PROGETTAZIONE E RICERCA DI FONDI PER LO SVILUPPO DELLE ATTIVITA COMUNALI;06-05-2021;332;0;479;1;Spese correnti;3;Acquisto di beni e servizi;2;Acquisto di servizi;11;Prestazioni professionali e specialistiche;999;Altre prestazioni professionali e specialistiche n.a.c.;06-05-2021;
542;1;0;"266,09";"266,09";BELLNET INTERNATIONAL S.R.L.;Z752BFBD5F;Fatt.n. FATTPA 969_21 del 30/04/2021 TRAFFICO LOCALE UFF. COMUNALI  - MAGGIO 2021;06-05-2021;34;0;58;1;Spese correnti;3;Acquisto di beni e servizi;2;Acquisto di servizi;5;Utenze e canoni;1;Telefonia fissa;06-05-2021;
543;1;0;"28,06";"28,06";SICURITALIA IVRI S.P.A.;Z3827208DE;Fatt.n. 9117006088 del 30/04/2021 SERVIZI DI PRONTO INTERVENTO;06-05-2021;235;0;92;1;Spese correnti;3;Acquisto di beni e servizi;2;Acquisto di servizi;5;Utenze e canoni;999;Utenze e canoni per altri servizi n.a.c.;06-05-2021;
544;1;0;"13.607,54";"13.607,54";CRESTANI COSTRUZIONI GENERALI S.R.L.;Z0C312D1D5;Fatt.n. FATTPA 11_21 del 19/04/2021 LAVORI DI ASFALTATURA STRADE COMUNALI;06-05-2021;1007;0;97;2;Spese in conto capitale;2;Investimenti fissi lordi e acquisto di terreni;1;Beni materiali;9;Beni immobili;12;Infrastrutture stradali;06-05-2021;
545;1;0;"122,00";"122,00";FRATELLI STRADIOTTO SPURGHI SRL;Z39315F729;Fatt.n. 829 del 30/04/2021 INTERVENTO CON CAMION BOTTE PER LAVAGGI;06-05-2021;252;1;109;1;Spese correnti;3;Acquisto di beni e servizi;2;Acquisto di servizi;9;Manutenzione ordinaria e riparazioni;12;Manutenzione ordinaria e riparazioni di terreni e beni materiali non prodotti;06-05-2021;
546;1;0;"377,45";"377,45";FARMACIE PIU' DI S.A.S. DT RI C. E N.; ;Fatt.n. 13C del 30/04/2021 BENI PER EMERGENZA COVID;07-05-2021;563;0;468;1;Spese correnti;3;Acquisto di beni e servizi;1;Acquisto di beni;2;Altri beni di consumo;11;Generi alimentari;07-05-2021;
547;1;0;"1.464,00";"1.464,00";ACCATRE S.R.L.;Z732FC84DF;SALDO Fatt.n. 1/210478  del 12/04/2021 PROGETTO FLUSSI AMMINISTRATIVI PER LA DEMATERIALIZZAZIONE DEGLI ATTI;07-05-2021;39;2;403;1;Spese correnti;3;Acquisto di beni e servizi;2;Acquisto di servizi;19;Servizi informatici e di telecomunicazioni;5;Servizi per i sistemi e relativa manutenzione;07-05-2021;
548;1;0;"1.781,82";"1.781,82";UNICOOPER SERVIZI S.C.R.L.;ZA530DF999;Fatt.n. 727 del 30/04/2021 PULIZIE EDIFICI COMUNALI - APRILE 2021;17-05-2021;34;2;61;1;Spese correnti;3;Acquisto di beni e servizi;2;Acquisto di servizi;13;Servizi ausiliari per il funzionamento dell'ente;2;Servizi di pulizia e lavanderia;17-05-2021;
549;1;0;"15,00";"15,00";MEDIALINK S.R.L.;ZB4310ACF3;Fatt.n. 94 del 30/04/2021 INSTALLAZIONE TELECAMERE IMP. SPORTIVI;17-05-2021;743;3;71;2;Spese in conto capitale;2;Investimenti fissi lordi e acquisto di terreni;1;Beni materiali;6;Macchine per ufficio;1;Macchine per ufficio;17-05-2021;
550;1;0;"2.000,00";"2.000,00";MEDIALINK S.R.L.;ZB4310ACF3;Fatt.n. 94 del 30/04/2021 INSTALLAZIONE TELECAMERE IMP. SPORTIVI;17-05-2021;746;0;72;2;Spese in conto capitale;2;Investimenti fissi lordi e acquisto di terreni;1;Beni materiali;7;Hardware;3;Periferiche;17-05-2021;
551;1;0;"5.000,00";"5.000,00";MEDIALINK S.R.L.;ZB4310ACF3;Fatt.n. 94 del 30/04/2021 INSTALLAZIONE TELECAMERE IMP. SPORTIVI;17-05-2021;778;0;73;2;Spese in conto capitale;2;Investimenti fissi lordi e acquisto di terreni;1;Beni materiali;5;Attrezzature;999;Attrezzature n.a.c.;17-05-2021;
552;1;0;"61,99";"61,99";KUWAIT PETROLEUM ITALIA S.P.A.;Z5B2CB3D93;Fatt.n. PJ03875104 del 30/04/2021 CARBURANTE AUTO VIGILI - APRILE 2021;17-05-2021;179;0;109;1;Spese correnti;3;Acquisto di beni e servizi;1;Acquisto di beni;2;Altri beni di consumo;2;"Carburanti, combustibili e lubrificanti";17-05-2021;
553;1;0;"183,58";"183,58";KUWAIT PETROLEUM ITALIA S.P.A.;Z5B2CB3D93;Fatt.n. PJ03875103 del 30/04/2021 CARBURANTE AUTO UFF. SOCIALE - APRILE 2021;17-05-2021;571;0;110;1;Spese correnti;3;Acquisto di beni e servizi;1;Acquisto di beni;2;Altri beni di consumo;2;"Carburanti, combustibili e lubrificanti";17-05-2021;
554;1;0;"68,52";"339,61";KUWAIT PETROLEUM ITALIA S.P.A.;Z5B2CB3D93;Fatt.n. PJ03875102 del 30/04/2021 CARBURANTE AUTO OPERAI  - APRILE 2021;17-05-2021;590;0;111;1;Spese correnti;3;Acquisto di beni e servizi;1;Acquisto di beni;2;Altri beni di consumo;2;"Carburanti, combustibili e lubrificanti";17-05-2021;
554;2;0;"271,09";"339,61";KUWAIT PETROLEUM ITALIA S.P.A.;Z5B2CB3D93;Fatt.n. PJ03875101 del 30/04/2021 CARBURANTE AUTO PROT. CIVILE - APRILE 2021;17-05-2021;590;0;111;1;Spese correnti;3;Acquisto di beni e servizi;1;Acquisto di beni;2;Altri beni di consumo;2;"Carburanti, combustibili e lubrificanti";17-05-2021;
555;1;0;"514,18";"514,18";AS.COM SERVIZI DEL MANDAMENTO S.R.L.; ;Fatt.n. 00010/02 del 07/04/2021 LOCAZIONE CENTRO PER L'IMPIEGO 16.03 - 15.06;17-05-2021;515;0;121;1;Spese correnti;4;Trasferimenti correnti;1;Trasferimenti correnti a Amministrazioni Pubbliche;2;Trasferimenti correnti a Amministrazioni Locali;17;Trasferimenti correnti a altri enti e agenzie regionali e sub regionali;17-05-2021;
556;1;0;"161,83";"161,83";OMESSO NOMINATIVO NEL RISPETTO DELLA NORMATIVA SULLA PROTEZIONE DATI PERSONALI; ;LIQUIDAZIONE UTENTE G.C. PASTI APRILE 2021 FT. N. 195/B DEL 06.05.2021 "CASA DI RIPOSO AITA" E LIQUIDAZIONE BOLLETTA N. 61202100285733 DEL 23.04.2021 ALTO TREVIGIANO SERVIZI.;17-05-2021;576;0;34;1;Spese correnti;4;Trasferimenti correnti;2;Trasferimenti correnti a Famiglie;2;Interventi assistenziali;999;Altri assegni e sussidi assistenziali;17-05-2021;
557;1;0;"296,06";"296,06";OMESSO NOMINATIVO NEL RISPETTO DELLA NORMATIVA SULLA PROTEZIONE DATI PERSONALI; ;LIQUIDAZIONE UTENTE F.R. PASTI APRILE 2021 FT. N. 197/B DEL 06.05.2021.;17-05-2021;576;0;431;1;Spese correnti;4;Trasferimenti correnti;2;Trasferimenti correnti a Famiglie;2;Interventi assistenziali;999;Altri assegni e sussidi assistenziali;17-05-2021;
558;1;0;"183,00";"183,00";G.S.E. S.p.A.; ;SALDO Fatt.n. 2021014183  del 22/04/2021 Contributo a favore GSE art. 17 D.M. 28 dicembre 2012 - Codice identificativo richiesta: CT00454143 - FATTURA A COMPENSAZIONE;18-05-2021;27;0;140;1;Spese correnti;3;Acquisto di beni e servizi;2;Acquisto di servizi;99;Altri servizi;999;Altri servizi diversi n.a.c.;18-05-2021;
559;1;0;"36,60";"36,60";G.S.E. S.p.A.; ;SALDO Fatt.n. 2021024822  del 14/05/2021 DELIB.ARG/elt 74/08-ART.6.1 lett.c SCAMBIO SUL POSTO SSP00726396 - FATTURA A COMPENSAZIONE;18-05-2021;27;0;140;1;Spese correnti;3;Acquisto di beni e servizi;2;Acquisto di servizi;99;Altri servizi;999;Altri servizi diversi n.a.c.;18-05-2021;
590;1;0;"5.961,21";"5.961,21";AMMINISTRATORI COMUNALI; ;STIPENDI MESE DI: MAGGIO 21;18-05-2021;2;0;1;1;Spese correnti;3;Acquisto di beni e servizi;2;Acquisto di servizi;1;Organi e incarichi istituzionali dell'amministrazione;1;Organi istituzionali dell'amministrazione - Indennità;18-05-2021;
593;1;0;"245,00";"245,00";AGENZIA DELLE ENTRATE - UFFICIO TERRIT. DI MONTEBELLUNA; ;AGENZIA DELLE ENTRATE F24EP-PR20210000322632 -SQUADRATURA BKIT:1/-245 - CONTRATTO REP. N. 2558 DEL 05/05/2021. (P. 26 -R. 689 del 18/05/2021);19-05-2021;34;3;133;1;Spese correnti;3;Acquisto di beni e servizi;2;Acquisto di servizi;16;Servizi amministrativi;999;Altre spese per servizi amministrativi;19-05-2021;
595;1;697;"1.000,00";"1.000,00";SOCCORSO ALPINO E SPELEOLOGICO VENETO A.P.S. - STAZIONE PEDEMONTANA DEL GRAPPA - PIEVE DEL; ;IMPEGNO E LIQUIDAZIONE CONTRIBUTO ECONOMICO ALLA STAZIONE PEDEMONTANA DEL GRAPPA DEL SOCCORSO ALPINO SPELEOLOGICO VENETO - STAZIONE DI PIEVE DEL GRAPPA PER ACQUISTO QUAD - CATEGORIA QUAD UTILITY ALLESTITO PER IL SOCCORSO DEGLI INFORTUNATI IN AMBI;21-05-2021;334;0;147;1;Spese correnti;4;Trasferimenti correnti;1;Trasferimenti correnti a Amministrazioni Pubbliche;4;Trasferimenti correnti a organismi interni e/o unità locali della amministrazione;1;Trasferimenti correnti a organismi interni e/o unità locali della amministrazione;25-05-2021;
596;1;698;"12.410,72";"12.410,72";Mobilita' di Marca S.P.A.;7976331491;Fatt.n. 000268 del 17/05/2021 TRASPORTO SCOLASTICO  - APRILE 2021;24-05-2021;275;1;376;1;Spese correnti;3;Acquisto di beni e servizi;2;Acquisto di servizi;15;Contratti di servizio pubblico;2;Contratti di servizio di trasporto scolastico;25-05-2021;
597;1;0;"5.406,34";"5.406,34";CASA DI RIPOSO 'AITA'; ;Fatt.n. 230/C del 04/05/2021 PASTI MENSA  - APRILE 2021;24-05-2021;274;1;472;1;Spese correnti;3;Acquisto di beni e servizi;2;Acquisto di servizi;15;Contratti di servizio pubblico;6;Contratti di servizio per le mense scolastiche;24-05-2021;
598;1;699;"1.622,00";"1.622,00";CASA DI RIPOSO 'AITA'; ;Fatt.n. 207/B del 06/05/2021 PRESTAZIONI SOCIALI L.V.  - APRILE 2021;24-05-2021;560;0;43;1;Spese correnti;3;Acquisto di beni e servizi;2;Acquisto di servizi;15;Contratti di servizio pubblico;8;Contratti di servizio di assistenza sociale residenziale e semiresidenziale;25-05-2021;
599;1;700;"1.429,68";"1.429,68";NOIGROUP Coop. Soc. a R.L.;8551409DEF;Fatt.n. 279 del 30/04/2021 SERVIZIO GESTIONE BIBLIOTECA - APRILE 2021;24-05-2021;302;1;28;1;Spese correnti;3;Acquisto di beni e servizi;2;Acquisto di servizi;16;Servizi amministrativi;999;Altre spese per servizi amministrativi;25-05-2021;
600;1;701;"341,30";"341,30";POSTE ITALIANE S.P.A. - AFFRANCATRICE POSTALE;Z03302BD5C;Fatt.n. 1021105938 del 27/04/2021 PRODOTTI POSTALI: MARZO 2021;24-05-2021;26;0;45;1;Spese correnti;3;Acquisto di beni e servizi;2;Acquisto di servizi;16;Servizi amministrativi;2;Spese postali;25-05-2021;
601;1;702;"1.112,10";"1.112,10";NOIGROUP Coop. Soc. a R.L.;ZDE2A28443;Fatt.n. 278 del 30/04/2021 SERVIZIO APERTURA/CHIUSURA MUSEO - APRILE 2021;24-05-2021;303;0;490;1;Spese correnti;3;Acquisto di beni e servizi;2;Acquisto di servizi;99;Altri servizi;999;Altri servizi diversi n.a.c.;25-05-2021;
602;1;0;"375,76";"375,76";MyO S.P.A.;Z5E30E8E1F;Fatt.n. 2040/210009571 del 16/04/2021 CANCELLERIA PER UFFICI;24-05-2021;37;0;63;1;Spese correnti;3;Acquisto di beni e servizi;1;Acquisto di beni;2;Altri beni di consumo;1;"Carta, cancelleria e stampati";24-05-2021;
603;1;0;"579,50";"579,50";MyO S.P.A.;Z5E30E8E1F;Fatt.n. 2040/210008464 del 31/03/2021 CANCELLERIA PER UFFICI COMUNALI;24-05-2021;37;0;63;1;Spese correnti;3;Acquisto di beni e servizi;1;Acquisto di beni;2;Altri beni di consumo;1;"Carta, cancelleria e stampati";24-05-2021;
604;1;703;"133,76";"133,76";ADPARTNERS S.R.L.;Z7731738CC;Fatt.n. 881/2021 del 05/05/2021 INSTALLAZIONE WEBCAM;24-05-2021;33;0;124;1;Spese correnti;3;Acquisto di beni e servizi;1;Acquisto di beni;2;Altri beni di consumo;6;Materiale informatico;25-05-2021;
605;1;0;"2.364,86";"2.364,86";LA ESSE COOPERATIVA SOCIALE;Z072F618EE;Fatt.n. 67/01 del 19/04/2021 INTERVENTI EDUCATIVI PER MINORI;24-05-2021;559;0;379;1;Spese correnti;3;Acquisto di beni e servizi;2;Acquisto di servizi;99;Altri servizi;999;Altri servizi diversi n.a.c.;24-05-2021;
606;1;704;"2.340,00";"2.340,00";MAXI DI SRL; ;Fatt.n. 2908003489 del 29/04/2021 BUONI COVID MARZO 2021;24-05-2021;563;0;463;1;Spese correnti;3;Acquisto di beni e servizi;1;Acquisto di beni;2;Altri beni di consumo;11;Generi alimentari;25-05-2021;
607;1;705;"1.241,10";"1.241,10";UNA CASA PER L'UOMO - SOCIETA' COOPERATIVA SOCIALE;ZBF30D8707;Fatt.n. FE/0000132 del 30/04/2021 PRETAZIONI SOCIALI;24-05-2021;559;0;50;1;Spese correnti;3;Acquisto di beni e servizi;2;Acquisto di servizi;99;Altri servizi;999;Altri servizi diversi n.a.c.;25-05-2021;
608;1;0;"202,80";"202,80";GRAFICHE E. GASPARI SRL;ZED3098617;Fatt.n. 04358/S del 30/04/2021 TESSERINI INVALIDI PER UFFICIO VIGILI;24-05-2021;178;0;80;1;Spese correnti;3;Acquisto di beni e servizi;1;Acquisto di beni;2;Altri beni di consumo;1;"Carta, cancelleria e stampati";24-05-2021;
609;1;706;"5.075,20";"5.075,20";FANTINATO SERGIO;Z6B2EA07F4;Fatt.n. 37 del 07/05/2021 ONORARIO PER CONSULENZA TECNICA FALLIMENTO FENICE SRL;24-05-2021;50;0;340;1;Spese correnti;3;Acquisto di beni e servizi;2;Acquisto di servizi;11;Prestazioni professionali e specialistiche;6;Patrocinio legale;25-05-2021;
610;1;707;"530,04";"530,04";A.S. DI ANDREATTA GIUSEPPE & C. S.R.L.;Z04300D84C;Fatt.n. 342 del 30/04/2021 LAVORI PER TRASFERIMENTO SEDE COMUNALE;24-05-2021;745;0;456;2;Spese in conto capitale;2;Investimenti fissi lordi e acquisto di terreni;1;Beni materiali;9;Beni immobili;19;Fabbricati ad uso strumentale;25-05-2021;
611;1;708;"244,00";"244,00";OLIKON S.R.L.;ZD4319D608;Fatt.n. 40/FT 2021 del 12/05/2021 MANUTENZIONE ORDINARIA SOFTWARE ACCERTIAMO;24-05-2021;39;1;132;1;Spese correnti;3;Acquisto di beni e servizi;2;Acquisto di servizi;7;Utilizzo di beni di terzi;6;Licenze d'uso per software;25-05-2021;
612;1;709;"970,08";"970,08";MAZZAROLO S.R.L.;Z9B3168B27;Fatt.n. 2021_3_9 del 13/05/2021 MANUTENZIONE AUTO COMUNALI;24-05-2021;590;1;115;1;Spese correnti;3;Acquisto di beni e servizi;2;Acquisto di servizi;9;Manutenzione ordinaria e riparazioni;4;Manutenzione ordinaria e riparazioni di impianti e macchinari;25-05-2021;
613;1;710;"69,54";"69,54";SICURITALIA IVRI S.P.A.;Z3827208DE;Fatt.n. 9117006804 del 14/05/2021 SERVIZIO DI PRONTO INTERVENTO - MAGGIO 2021;24-05-2021;34;0;88;1;Spese correnti;3;Acquisto di beni e servizi;2;Acquisto di servizi;5;Utenze e canoni;999;Utenze e canoni per altri servizi n.a.c.;25-05-2021;
614;1;711;"42,70";"42,70";SICURITALIA IVRI S.P.A.;Z3827208DE;Fatt.n. 9117006804 del 14/05/2021 SERVIZIO DI PRONTO INTERVENTO - MAGGIO 2021;24-05-2021;71;0;89;1;Spese correnti;3;Acquisto di beni e servizi;2;Acquisto di servizi;5;Utenze e canoni;999;Utenze e canoni per altri servizi n.a.c.;25-05-2021;
615;1;712;"141,52";"141,52";SICURITALIA IVRI S.P.A.;Z3827208DE;Fatt.n. 9117006804 del 14/05/2021 SERVIZIO DI PRONTO INTERVENTO - MAGGIO 2021;24-05-2021;235;0;92;1;Spese correnti;3;Acquisto di beni e servizi;2;Acquisto di servizi;5;Utenze e canoni;999;Utenze e canoni per altri servizi n.a.c.;25-05-2021;
616;1;713;"141,52";"141,52";SICURITALIA IVRI S.P.A.;Z3827208DE;Fatt.n. 9117006804 del 14/05/2021 SERVIZIO DI PRONTO INTERVENTO - MAGGIO 2021;24-05-2021;252;0;170;1;Spese correnti;3;Acquisto di beni e servizi;2;Acquisto di servizi;5;Utenze e canoni;999;Utenze e canoni per altri servizi n.a.c.;25-05-2021;
617;1;714;"86,62";"86,62";SICURITALIA IVRI S.P.A.;Z3827208DE;Fatt.n. 9117006804 del 14/05/2021 SERVIZIO DI PRONTO INTERVENTO - MAGGIO 2021;24-05-2021;310;0;93;1;Spese correnti;3;Acquisto di beni e servizi;2;Acquisto di servizi;5;Utenze e canoni;999;Utenze e canoni per altri servizi n.a.c.;25-05-2021;
618;1;0;"42,70";"42,70";SICURITALIA IVRI S.P.A.;Z3827208DE;Fatt.n. 9117006804 del 14/05/2021 SERVIZIO DI PRONTO INTERVENTO - MAGGIO 2021;24-05-2021;313;2;94;1;Spese correnti;3;Acquisto di beni e servizi;2;Acquisto di servizi;5;Utenze e canoni;999;Utenze e canoni per altri servizi n.a.c.;24-05-2021;
619;1;715;"42,70";"42,70";SICURITALIA IVRI S.P.A.;Z3827208DE;Fatt.n. 9117006804 del 14/05/2021 SERVIZIO DI PRONTO INTERVENTO - MAGGIO 2021;24-05-2021;561;2;90;1;Spese correnti;3;Acquisto di beni e servizi;2;Acquisto di servizi;5;Utenze e canoni;999;Utenze e canoni per altri servizi n.a.c.;25-05-2021;
620;1;0;"18.581,82";"18.581,82";TEC.SE. SRL;ZE72F90984;Fatt.n. 263 del 12/05/2021 LAVORI DI SEGNALETICA STRADALE;24-05-2021;1007;0;390;2;Spese in conto capitale;2;Investimenti fissi lordi e acquisto di terreni;1;Beni materiali;9;Beni immobili;12;Infrastrutture stradali;24-05-2021;
621;1;716;"78,43";"78,43";LA FONTESE DI GIANNI BROLESE & C. S.A.S.;ZF0309959B;Fatt.n. 49/F del 31/03/2021 CANCELLERIA PER UFFICI COMUNALI;24-05-2021;37;0;38;1;Spese correnti;3;Acquisto di beni e servizi;1;Acquisto di beni;2;Altri beni di consumo;1;"Carta, cancelleria e stampati";25-05-2021;
622;1;0;"58,32";"58,32";MyO S.P.A.;Z5E30E8E1F;Fatt.n. 2040/210006930 del 19/03/2021 FORNITURA CANCELLARIA;24-05-2021;37;0;63;1;Spese correnti;3;Acquisto di beni e servizi;1;Acquisto di beni;2;Altri beni di consumo;1;"Carta, cancelleria e stampati";24-05-2021;
623;1;0;"75,80";"75,80";EGAF EDIZIONI SRL;Z8C3098D48;Fatt.n. 2021-V-VS2-555 del 03/03/2021 ACQUSTO PRONTUARI CDS PER VIGILI;24-05-2021;178;0;39;1;Spese correnti;3;Acquisto di beni e servizi;1;Acquisto di beni;2;Altri beni di consumo;14;Stampati specialistici;24-05-2021;
624;1;0;"500,00";"500,00";OMESSO NOMINATIVO NEL RISPETTO DELLA NORMATIVA SULLA PROTEZIONE DATI PERSONALI; ;"CONTRIBUTO ECONOMICO PER SOSTENERE UN NUCLEO FORTEMENTE COLPITO DALLE CONSEGUENZE DEL COVID-19, RISPETTO ALLA PROPRIA ATTIVITA LAVORATIVA.";27-05-2021;567;0;144;1;Spese correnti;3;Acquisto di beni e servizi;2;Acquisto di servizi;99;Altri servizi;999;Altri servizi diversi n.a.c.;27-05-2021;
627;1;0;"123,93";"123,93";ASCOTRADE S.P.A.;Z1A30C111E;SALDO Fatt.n. 500479716  del 21/04/2021 FORNITURA GAS NATURALE - 16/02/21 - 21/04/21;04-06-2021;71;0;48;1;Spese correnti;3;Acquisto di beni e servizi;2;Acquisto di servizi;5;Utenze e canoni;6;Gas;04-06-2021;
628;1;0;"83,70";"83,70";POSTE ITALIANE S.P.A. - AFFRANCATRICE POSTALE;Z03302BD5C;Fatt.n. 1021125806 del 27/05/2021 PRODOTTI POSTALI APRILE 2021;09-06-2021;26;0;45;1;Spese correnti;3;Acquisto di beni e servizi;2;Acquisto di servizi;16;Servizi amministrativi;2;Spese postali;09-06-2021;
629;1;0;"466,65";"3.877,43";BIM PIAVE NUOVE ENERGIE S.R.L.; ;Fatt.n. 9001090 del 25/05/2021 Anno termico 2020/2021 -;09-06-2021;34;0;101;1;Spese correnti;3;Acquisto di beni e servizi;2;Acquisto di servizi;5;Utenze e canoni;6;Gas;09-06-2021;
629;2;0;"1.399,58";"3.877,43";BIM PIAVE NUOVE ENERGIE S.R.L.; ;Fatt.n. 9001091 del 25/05/2021 Anno termico 2020/2021 - acqua calda 01/03/2021-30/04/2021 - Sede Municipale;09-06-2021;34;0;101;1;Spese correnti;3;Acquisto di beni e servizi;2;Acquisto di servizi;5;Utenze e canoni;6;Gas;09-06-2021;
629;3;0;"2.011,20";"3.877,43";BIM PIAVE NUOVE ENERGIE S.R.L.; ;Fatt.n. 9001093 del 25/05/2021 Anno termico 2020/2021 - acqua calda 01/03/2021-30/04/2021 - Villa Rubelli;09-06-2021;34;0;101;1;Spese correnti;3;Acquisto di beni e servizi;2;Acquisto di servizi;5;Utenze e canoni;6;Gas;09-06-2021;
630;1;0;"1.730,52";"4.081,97";BIM PIAVE NUOVE ENERGIE S.R.L.; ;Fatt.n. 9001096 del 25/05/2021 Anno termico 2020/2021 - acqua calda 01/03/2021-30/04/2021 - Scuola Primaria Liedolo;09-06-2021;235;0;102;1;Spese correnti;3;Acquisto di beni e servizi;2;Acquisto di servizi;5;Utenze e canoni;6;Gas;09-06-2021;
630;2;0;"2.351,45";"4.081,97";BIM PIAVE NUOVE ENERGIE S.R.L.; ;Fatt.n. 9001097 del 25/05/2021 Anno termico 2020/2021 - acqua calda 01/03/2021-30/04/2021 - Scuola Primaria CÃ  Rainati;09-06-2021;235;0;102;1;Spese correnti;3;Acquisto di beni e servizi;2;Acquisto di servizi;5;Utenze e canoni;6;Gas;09-06-2021;
631;1;0;"8.325,61";"8.325,61";BIM PIAVE NUOVE ENERGIE S.R.L.; ;Fatt.n. 9001095 del 25/05/2021 Anno termico 2020/2021 - acqua calda 01/03/2021-30/04/2021 - Scuola Secondaria/Primaria;09-06-2021;252;0;103;1;Spese correnti;3;Acquisto di beni e servizi;2;Acquisto di servizi;5;Utenze e canoni;6;Gas;09-06-2021;
632;1;0;"2.573,01";"2.573,01";BIM PIAVE NUOVE ENERGIE S.R.L.; ;Fatt.n. 9001093 del 25/05/2021 Anno termico 2020/2021 - acqua calda 01/03/2021-30/04/2021 - Villa Rubelli;09-06-2021;310;0;104;1;Spese correnti;3;Acquisto di beni e servizi;2;Acquisto di servizi;5;Utenze e canoni;6;Gas;09-06-2021;
633;1;0;"2.901,04";"2.901,04";BIM PIAVE NUOVE ENERGIE S.R.L.; ;Fatt.n. 9001098 del 25/05/2021 Anno termico 2020/2021 - acqua calda 01/03/2021-30/04/2021 - Palestra CÃ  Rainati;09-06-2021;530;0;105;1;Spese correnti;3;Acquisto di beni e servizi;2;Acquisto di servizi;5;Utenze e canoni;6;Gas;09-06-2021;
634;1;0;"752,35";"2.249,44";BIM PIAVE NUOVE ENERGIE S.R.L.; ;Fatt.n. 9001092 del 25/05/2021 Anno termico 2020/2021 - acqua calda 01/03/2021-30/04/2021 - Ex Scuola Sopracastello;09-06-2021;561;2;106;1;Spese correnti;3;Acquisto di beni e servizi;2;Acquisto di servizi;5;Utenze e canoni;6;Gas;09-06-2021;
634;2;0;"1.497,09";"2.249,44";BIM PIAVE NUOVE ENERGIE S.R.L.; ;Fatt.n. 9001094 del 25/05/2021 Anno termico 2020/2021 - acqua calda 01/03/2021-30/04/2021 - Polivalente "La Roggia";09-06-2021;561;2;106;1;Spese correnti;3;Acquisto di beni e servizi;2;Acquisto di servizi;5;Utenze e canoni;6;Gas;09-06-2021;
635;1;0;"2.286,60";"2.286,60";LA ESSE COOPERATIVA SOCIALE;Z302F1C73A;Fatt.n. 102/01 del 13/05/2021 REALIZZAZIONE DI UNO SPORTELLO PER IL LAVORO;09-06-2021;568;0;368;1;Spese correnti;3;Acquisto di beni e servizi;2;Acquisto di servizi;99;Altri servizi;999;Altri servizi diversi n.a.c.;09-06-2021;
636;1;0;"4.123,60";"4.123,60";BEDIN PAOLO;ZC92DB0266;Fatt.n. FPA 2/21 del 19/05/2021 INCARICO REDAZIONE PROGETTO PERCORSO PEDONALE;09-06-2021;64;1;222;1;Spese correnti;3;Acquisto di beni e servizi;2;Acquisto di servizi;11;Prestazioni professionali e specialistiche;999;Altre prestazioni professionali e specialistiche n.a.c.;09-06-2021;
637;1;0;"427,00";"427,00";TECNO METAL S.R.L.;ZBA319D3ED;Fatt.n. 00009/R3 del 17/05/2021 INTERVENTO MANUTENZIONE SERRAMENTI PRESSO SCUOLA PRIMARIA;09-06-2021;235;1;131;1;Spese correnti;3;Acquisto di beni e servizi;2;Acquisto di servizi;9;Manutenzione ordinaria e riparazioni;11;Manutenzione ordinaria e riparazioni di altri beni materiali;09-06-2021;
638;1;0;"3.689,40";"3.689,40";CASA DI RIPOSO 'AITA'; ;Fatt.n. 215/B del 18/05/2021 SERVIZIO DI A.D.  - APRILE 2021;09-06-2021;562;1;240;1;Spese correnti;3;Acquisto di beni e servizi;2;Acquisto di servizi;15;Contratti di servizio pubblico;9;Contratti di servizio di assistenza sociale domiciliare;09-06-2021;
639;1;0;"56,32";"56,32";FERRONATO S.R.L.;Z7C26AD935;Fatt.n. P2 del 30/04/2021 FORNITURA METERIALE;09-06-2021;313;0;277;1;Spese correnti;3;Acquisto di beni e servizi;1;Acquisto di beni;2;Altri beni di consumo;999;Altri beni e materiali di consumo n.a.c.;09-06-2021;
640;1;0;"1.342,00";"1.342,00";EDIL MUNAROLO DI MUNAROLO IVAN & C. S.N.C.;Z3B3094A59;Fatt.n. 1/PA del 12/05/2021 SISTEMAZIONE PISTA CICLABILE;09-06-2021;1007;0;30;2;Spese in conto capitale;2;Investimenti fissi lordi e acquisto di terreni;1;Beni materiali;9;Beni immobili;12;Infrastrutture stradali;09-06-2021;
641;1;0;"6.813,52";"6.813,52";PLT PUREGREEN;7134285639;Fatt.n. 20210040002675 del 12/05/2021 FORNITURA ENERGIA ELETTRICA - APRILE 2021;09-06-2021;600;0;216;1;Spese correnti;3;Acquisto di beni e servizi;2;Acquisto di servizi;5;Utenze e canoni;4;Energia elettrica;09-06-2021;
642;1;0;"76,16";"76,16";PLT PUREGREEN;7134285639;Fatt.n. 20210040002678 del 12/05/2021 FORNITURA ENERGIA ELETTRICA - APRILE 2021;09-06-2021;34;0;207;1;Spese correnti;3;Acquisto di beni e servizi;2;Acquisto di servizi;5;Utenze e canoni;4;Energia elettrica;09-06-2021;
643;1;0;"83,81";"83,81";PLT PUREGREEN;7134285639;Fatt.n. 20210040002672 del 12/05/2021 FORNITURA ENERGIA ELETTRICA - APRILE 2021;09-06-2021;71;0;208;1;Spese correnti;3;Acquisto di beni e servizi;2;Acquisto di servizi;5;Utenze e canoni;4;Energia elettrica;09-06-2021;
644;1;0;"149,86";"330,83";PLT PUREGREEN;7134285639;Fatt.n. 20210040002683 del 12/05/2021 FORNITURA ENERGIA ELETTRICA - APRILE 2021;09-06-2021;235;0;209;1;Spese correnti;3;Acquisto di beni e servizi;2;Acquisto di servizi;5;Utenze e canoni;4;Energia elettrica;09-06-2021;
644;2;0;"180,97";"330,83";PLT PUREGREEN;7134285639;Fatt.n. 20210040002679 del 12/05/2021 FORNITURA ENERGIA ELETTRICA - APRILE 2021;09-06-2021;235;0;209;1;Spese correnti;3;Acquisto di beni e servizi;2;Acquisto di servizi;5;Utenze e canoni;4;Energia elettrica;09-06-2021;
645;1;0;"909,84";"909,84";PLT PUREGREEN;7134285639;Fatt.n. 20210040002681 del 12/05/2021 FORNITURA ENERGIA ELETTRICA - APRILE 2021;09-06-2021;252;0;210;1;Spese correnti;3;Acquisto di beni e servizi;2;Acquisto di servizi;5;Utenze e canoni;4;Energia elettrica;09-06-2021;
646;1;0;"405,03";"405,03";PLT PUREGREEN;7134285639;Fatt.n. 20210040002670 del 12/05/2021 FORNITURA ENERGIA ELETTRICA - APRILE 2021;09-06-2021;310;0;212;1;Spese correnti;3;Acquisto di beni e servizi;2;Acquisto di servizi;5;Utenze e canoni;4;Energia elettrica;09-06-2021;
647;1;0;"38,21";"221,29";PLT PUREGREEN;7134285639;Fatt.n. 20210040002673 del 12/05/2021 FORNITURA ENERGIA ELETTRICA - APRILE 2021;09-06-2021;413;0;211;1;Spese correnti;3;Acquisto di beni e servizi;2;Acquisto di servizi;5;Utenze e canoni;4;Energia elettrica;09-06-2021;
647;2;0;"41,33";"221,29";PLT PUREGREEN;7134285639;Fatt.n. 20210040002682 del 12/05/2021 FORNITURA ENERGIA ELETTRICA - APRILE 2021;09-06-2021;413;0;211;1;Spese correnti;3;Acquisto di beni e servizi;2;Acquisto di servizi;5;Utenze e canoni;4;Energia elettrica;09-06-2021;
647;3;0;"56,06";"221,29";PLT PUREGREEN;7134285639;Fatt.n. 20210040002680 del 12/05/2021 FORNITURA ENERGIA ELETTRICA - APRILE 2021;09-06-2021;413;0;211;1;Spese correnti;3;Acquisto di beni e servizi;2;Acquisto di servizi;5;Utenze e canoni;4;Energia elettrica;09-06-2021;
647;4;0;"85,69";"221,29";PLT PUREGREEN;7134285639;Fatt.n. 20210040002677 del 12/05/2021 FORNITURA ENERGIA ELETTRICA - APRILE 2021;09-06-2021;413;0;211;1;Spese correnti;3;Acquisto di beni e servizi;2;Acquisto di servizi;5;Utenze e canoni;4;Energia elettrica;09-06-2021;
648;1;0;"118,58";"426,08";PLT PUREGREEN;7134285639;Fatt.n. 20210040002674 del 12/05/2021 FORNITURA ENERGIA ELETTRICA - APRILE 2021;09-06-2021;530;0;214;1;Spese correnti;3;Acquisto di beni e servizi;2;Acquisto di servizi;5;Utenze e canoni;4;Energia elettrica;09-06-2021;
648;2;0;"307,50";"426,08";PLT PUREGREEN;7134285639;Fatt.n. 20210040002671 del 12/05/2021 FORNITURA ENERGIA ELETTRICA - APRILE 2021;09-06-2021;530;0;214;1;Spese correnti;3;Acquisto di beni e servizi;2;Acquisto di servizi;5;Utenze e canoni;4;Energia elettrica;09-06-2021;
649;1;0;"72,47";"347,30";PLT PUREGREEN;7134285639;Fatt.n. 20210040002676 del 12/05/2021 FORNITURA ENERGIA ELETTRICA - APRILE 2021;09-06-2021;561;2;215;1;Spese correnti;3;Acquisto di beni e servizi;2;Acquisto di servizi;5;Utenze e canoni;4;Energia elettrica;09-06-2021;
649;2;0;"274,83";"347,30";PLT PUREGREEN;7134285639;Fatt.n. 20210040002684 del 12/05/2021 FORNITURA ENERGIA ELETTRICA - APRILE 2021;09-06-2021;561;2;215;1;Spese correnti;3;Acquisto di beni e servizi;2;Acquisto di servizi;5;Utenze e canoni;4;Energia elettrica;09-06-2021;
650;1;0;"10,64";"10,64";PROVINCIA DI TREVISO;86775561BF;BANDO DI GARA A LOTTI PER L'AFFIDAMENTO DEL SERVIZIO DI RISTORAZIONE SCOLASTICA A RIDOTTO IMPATTO AMBIENTALE PER I COMUNI ADERENTI ALLA S.U.A. RIMBORSO SPESE PER CONTRIBUTO A.N.A.C..;09-06-2021;34;3;86;1;Spese correnti;3;Acquisto di beni e servizi;2;Acquisto di servizi;16;Servizi amministrativi;1;Pubblicazione bandi di gara;09-06-2021;
651;1;0;"47.402,42";"47.402,42";A.S. DI ANDREATTA GIUSEPPE & C. S.R.L.;84372406B4;Fatt.n. 357 del 24/05/2021 LAVORI DI EFFICIENTAMENTO ENERGETICO ILLUMINAZIONE PUBBLICA;09-06-2021;1004;0;401;2;Spese in conto capitale;2;Investimenti fissi lordi e acquisto di terreni;1;Beni materiali;9;Beni immobili;12;Infrastrutture stradali;09-06-2021;
693;1;0;"5.961,21";"5.961,21";AMMINISTRATORI COMUNALI; ;STIPENDI MESE DI: GIUGNO 21;10-06-2021;2;0;1;1;Spese correnti;3;Acquisto di beni e servizi;2;Acquisto di servizi;1;Organi e incarichi istituzionali dell'amministrazione;1;Organi istituzionali dell'amministrazione - Indennità;10-06-2021;
696;1;812;"6.825,00";"6.825,00";SARTOR ROBERTO;Z862B4A793;Fatt.n. FATTPA 6_21 del 18/05/2021 ACCONTO PIANO DEGLI INTERVENTI;11-06-2021;881;0;618;2;Spese in conto capitale;2;Investimenti fissi lordi e acquisto di terreni;3;Beni immateriali;5;Incarichi professionali per la realizzazione di investimenti;1;Incarichi professionali per la realizzazione di investimenti;22-06-2021;
697;1;0;"79,30";"79,30";TORRESAN PIETRO;ZC6303C3BD;Fatt.n. 1/PA del 27/05/2021 SPOSTAMENTO ANTENNA INTERNET WI-FI;11-06-2021;34;1;510;1;Spese correnti;3;Acquisto di beni e servizi;2;Acquisto di servizi;9;Manutenzione ordinaria e riparazioni;11;Manutenzione ordinaria e riparazioni di altri beni materiali;11-06-2021;
698;1;0;"982,10";"982,10";F.A.P.  DI MARCOLONGO LUIGI & C. S.N.C.;ZB3311BC45;Fatt.n. 115/FE del 28/05/2021 ACQUISTO VESTIARIO PER VIGILI;11-06-2021;175;0;117;1;Spese correnti;3;Acquisto di beni e servizi;1;Acquisto di beni;2;Altri beni di consumo;4;Vestiario;11-06-2021;
699;1;0;"942,87";"942,87";KYOCERA DOCUMENT SOLUTIONS ITALIA S.P.A.;ZF02648E30;Fatt.n. 1010689202 del 27/05/2021 NOLEGGIO FOTOCOPIATORI;11-06-2021;34;0;519;1;Spese correnti;3;Acquisto di beni e servizi;2;Acquisto di servizi;5;Utenze e canoni;999;Utenze e canoni per altri servizi n.a.c.;11-06-2021;
700;1;0;"411,59";"411,59";KYOCERA DOCUMENT SOLUTIONS ITALIA S.P.A.;ZF02648E30;Fatt.n. 1010689202 del 27/05/2021 NOLEGGIO FOTOCOPIATORI;11-06-2021;252;0;520;1;Spese correnti;3;Acquisto di beni e servizi;2;Acquisto di servizi;5;Utenze e canoni;999;Utenze e canoni per altri servizi n.a.c.;11-06-2021;
701;1;0;"24,40";"24,40";ELA SISTEMI ELETTRONICI S.R.L.;ZB730B1C28;Fatt.n. 12/PA del 25/05/2021 MANUTENZIONE IMPIANTO ALLARME;11-06-2021;310;1;36;1;Spese correnti;3;Acquisto di beni e servizi;2;Acquisto di servizi;9;Manutenzione ordinaria e riparazioni;4;Manutenzione ordinaria e riparazioni di impianti e macchinari;11-06-2021;
702;1;0;"585,60";"585,60";ELA SISTEMI ELETTRONICI S.R.L.;ZB730B1C28;Fatt.n. 12/PA del 25/05/2021 MANUTENZIONE IMPIANTO ALLARME;11-06-2021;313;1;35;1;Spese correnti;3;Acquisto di beni e servizi;2;Acquisto di servizi;9;Manutenzione ordinaria e riparazioni;4;Manutenzione ordinaria e riparazioni di impianti e macchinari;11-06-2021;
703;1;0;"28,06";"28,06";SICURITALIA IVRI S.P.A.;Z3827208DE;Fatt.n. 9117007389 del 31/05/2021 SERVIZI ISPETTIVI - MAGGIO 2021;11-06-2021;235;0;92;1;Spese correnti;3;Acquisto di beni e servizi;2;Acquisto di servizi;5;Utenze e canoni;999;Utenze e canoni per altri servizi n.a.c.;11-06-2021;
704;1;0;"58,57";"58,57";LA IDROFERRAMENTA SRL;Z683162916;Fatt.n. 45/PA del 31/05/2021 FORNITURA FERRAMENTA;11-06-2021;591;0;110;1;Spese correnti;3;Acquisto di beni e servizi;1;Acquisto di beni;2;Altri beni di consumo;999;Altri beni e materiali di consumo n.a.c.;11-06-2021;
705;1;0;"48,80";"48,80";ELA SISTEMI ELETTRONICI S.R.L.;ZA231D6C00;Fatt.n. 14/PA del 31/05/2021 FORNITURA BATTERIA;11-06-2021;313;1;158;1;Spese correnti;3;Acquisto di beni e servizi;2;Acquisto di servizi;9;Manutenzione ordinaria e riparazioni;5;Manutenzione ordinaria e riparazioni di attrezzature;11-06-2021;
706;1;0;"4.000,00";"4.000,00";TERMOIDRAULICA SERRAGLIO S.A.S. DI S. SERRAGLIO & C.;ZDD319D198;Fatt.n. 27 del 31/05/2021 LAVORI ALL'IMPIANTO IDRAULICO AL CIMITERO DI LIEDOLO;11-06-2021;236;0;149;1;Spese correnti;3;Acquisto di beni e servizi;2;Acquisto di servizi;9;Manutenzione ordinaria e riparazioni;11;Manutenzione ordinaria e riparazioni di altri beni materiali;11-06-2021;
707;1;0;"89,44";"89,44";TERMOIDRAULICA SERRAGLIO S.A.S. DI S. SERRAGLIO & C.;ZDD319D198;Fatt.n. 27 del 31/05/2021 LAVORI ALL'IMPIANTO IDRAULICO AL CIMITERO DI LIEDOLO;11-06-2021;413;1;150;1;Spese correnti;3;Acquisto di beni e servizi;2;Acquisto di servizi;9;Manutenzione ordinaria e riparazioni;11;Manutenzione ordinaria e riparazioni di altri beni materiali;11-06-2021;
708;1;0;"245,73";"245,73";BELLNET INTERNATIONAL S.R.L.;Z752BFBD5F;Fatt.n. FATTPA 1247_21 del 31/05/2021 TRAFFICO TELEFONICO;11-06-2021;34;0;58;1;Spese correnti;3;Acquisto di beni e servizi;2;Acquisto di servizi;5;Utenze e canoni;1;Telefonia fissa;11-06-2021;
709;1;0;"69,88";"69,88";OMESSO NOMINATIVO NEL RISPETTO DELLA NORMATIVA SULLA PROTEZIONE DATI PERSONALI; ;LIQUIDAZIONE UTENTE C. G. PASTI MESE MAGGIO 2021 FT. 236/B DEL 04.06.2021 "CASA DI RIPOSO AITA".;11-06-2021;576;0;34;1;Spese correnti;4;Trasferimenti correnti;2;Trasferimenti correnti a Famiglie;2;Interventi assistenziali;999;Altri assegni e sussidi assistenziali;11-06-2021;
710;1;0;"210,46";"210,46";OMESSO NOMINATIVO NEL RISPETTO DELLA NORMATIVA SULLA PROTEZIONE DATI PERSONALI; ;LIQUIDAZIONE UTENTE F. R. PASTI MESE MAGGIO 2021 FT. N. 238/B DEL 04.06.2021 CASA DI RIPOSO AITA.;11-06-2021;576;0;431;1;Spese correnti;4;Trasferimenti correnti;2;Trasferimenti correnti a Famiglie;2;Interventi assistenziali;999;Altri assegni e sussidi assistenziali;11-06-2021;
711;1;0;"96,12";"96,12";OMESSO NOMINATIVO NEL RISPETTO DELLA NORMATIVA SULLA PROTEZIONE DATI PERSONALI; ;LIQUIDAZIONE UTENTE F. R. PASTI MESE MAGGIO 2021 FT. N. 238/B DEL 04.06.2021 CASA DI RIPOSO AITA.;11-06-2021;576;0;108;1;Spese correnti;4;Trasferimenti correnti;2;Trasferimenti correnti a Famiglie;2;Interventi assistenziali;999;Altri assegni e sussidi assistenziali;11-06-2021;
712;1;810;"535,00";"535,00";OMESSO NOMINATIVO NEL RISPETTO DELLA NORMATIVA SULLA PROTEZIONE DATI PERSONALI; ;CONTRIBUTO ECONOMICO.;14-06-2021;567;0;138;1;Spese correnti;3;Acquisto di beni e servizi;2;Acquisto di servizi;99;Altri servizi;999;Altri servizi diversi n.a.c.;18-06-2021;
713;1;0;"121,00";"121,00";AZIENDA U.L.S.S. N.2  MARCA TREVIGIANA; ;IMPEGNO DI SPESA PER LE PRESTAZIONI EFFETTUATE DAL SERVIZIO VETERINARIO DELLAZIENDA ULSS 2 MARCA TREVIGIANA PRESSO IL CANILE SANITARIO;17-06-2021;180;0;64;1;Spese correnti;3;Acquisto di beni e servizi;2;Acquisto di servizi;15;Contratti di servizio pubblico;11;Contratti di servizio per la lotta al randagismo;17-06-2021;
714;1;0;"184,21";"184,21";TIM S.P.A.;6930022311;Fatt.n. 7X01395223 del 12/04/2021 CANONE TELEFONICO - 3 BIM 2021;17-06-2021;34;0;398;1;Spese correnti;3;Acquisto di beni e servizi;2;Acquisto di servizi;5;Utenze e canoni;999;Utenze e canoni per altri servizi n.a.c.;17-06-2021;
715;1;0;"677,93";"677,93";KEIMFARBEN COLORI MINERALI SRL;ZB931EB3CB;Fatt.n. 21300880 del 31/05/2021 COLORI PER SCUOLE;17-06-2021;252;1;165;1;Spese correnti;3;Acquisto di beni e servizi;2;Acquisto di servizi;9;Manutenzione ordinaria e riparazioni;8;Manutenzione ordinaria e riparazioni di beni immobili;17-06-2021;
716;1;0;"68,01";"68,01";KUWAIT PETROLEUM ITALIA S.P.A.;Z5B2CB3D93;Fatt.n. PJ03994048 del 31/05/2021 CARBURANTE AUTO UFFICI AMMI.VI - MAGGIO 2021;17-06-2021;47;0;108;1;Spese correnti;3;Acquisto di beni e servizi;1;Acquisto di beni;2;Altri beni di consumo;2;"Carburanti, combustibili e lubrificanti";17-06-2021;
717;1;0;"70,99";"70,99";KUWAIT PETROLEUM ITALIA S.P.A.;Z5B2CB3D93;Fatt.n. PJ03994052 del 31/05/2021 CARBURANTE AUTO VIGILI MAGGIO 2021;17-06-2021;179;0;109;1;Spese correnti;3;Acquisto di beni e servizi;1;Acquisto di beni;2;Altri beni di consumo;2;"Carburanti, combustibili e lubrificanti";17-06-2021;
718;1;0;"134,00";"134,00";KUWAIT PETROLEUM ITALIA S.P.A.;Z5B2CB3D93;Fatt.n. PJ03994051 del 31/05/2021 CARBURANTE AUTO UFF. SOCIALE - MAGGIO 2021;17-06-2021;571;0;110;1;Spese correnti;3;Acquisto di beni e servizi;1;Acquisto di beni;2;Altri beni di consumo;2;"Carburanti, combustibili e lubrificanti";17-06-2021;
719;1;0;"104,09";"219,00";KUWAIT PETROLEUM ITALIA S.P.A.;Z5B2CB3D93;Fatt.n. PJ03994050 del 31/05/2021 CARBURANTE AUTO OPERAI - MAGGIO 2021;17-06-2021;590;0;111;1;Spese correnti;3;Acquisto di beni e servizi;1;Acquisto di beni;2;Altri beni di consumo;2;"Carburanti, combustibili e lubrificanti";17-06-2021;
719;2;0;"114,91";"219,00";KUWAIT PETROLEUM ITALIA S.P.A.;Z5B2CB3D93;Fatt.n. PJ03994049 del 31/05/2021 CARBURANTE AUTO PROT. CIVILE - MAGGIO 2021;17-06-2021;590;0;111;1;Spese correnti;3;Acquisto di beni e servizi;1;Acquisto di beni;2;Altri beni di consumo;2;"Carburanti, combustibili e lubrificanti";17-06-2021;
720;1;0;"731,27";"731,27";GREEN TELECOMUNICAZIONI S.P.A.;ZCD3205CD3;Fatt.n. SE942 del 03/06/2021 SERVIZI DI TELECOMUNICAZIONI;17-06-2021;178;3;182;1;Spese correnti;3;Acquisto di beni e servizi;2;Acquisto di servizi;5;Utenze e canoni;2;Telefonia mobile;17-06-2021;
721;1;811;"850,00";"850,00";OMESSO NOMINATIVO NEL RISPETTO DELLA NORMATIVA SULLA PROTEZIONE DATI PERSONALI; ;IMPEGNO DI SPESA PER SOSTEGNO ECONOMICO STRAORDINARIO A FAVORE DI UN NUCLEO IN GRAVE DISAGIO CAUSA EMERGENZA COVID-19. CONTRIBUTO FINANZIATO CON DONAZIONI.;17-06-2021;576;0;185;1;Spese correnti;4;Trasferimenti correnti;2;Trasferimenti correnti a Famiglie;2;Interventi assistenziali;999;Altri assegni e sussidi assistenziali;22-06-2021;
722;1;813;"156,16";"156,16";TIM S.P.A.;Z7F2E68750;Fatt.n. 4220421800021492 del 10/06/2021 TRAFFICO TELEFONICO 4 BIM 2021;21-06-2021;235;0;307;1;Spese correnti;3;Acquisto di beni e servizi;2;Acquisto di servizi;5;Utenze e canoni;999;Utenze e canoni per altri servizi n.a.c.;22-06-2021;
723;1;814;"42,70";"42,70";SICURITALIA IVRI S.P.A.;Z3827208DE;Fatt.n. 9117007948 del 14/06/2021 SERVIZI ISPETTIVI - MAGGIO 2021;21-06-2021;71;0;89;1;Spese correnti;3;Acquisto di beni e servizi;2;Acquisto di servizi;5;Utenze e canoni;999;Utenze e canoni per altri servizi n.a.c.;22-06-2021;
724;1;815;"141,52";"141,52";SICURITALIA IVRI S.P.A.;Z3827208DE;Fatt.n. 9117007948 del 14/06/2021 SERVIZI ISPETTIVI - MAGGIO 2021;21-06-2021;235;0;92;1;Spese correnti;3;Acquisto di beni e servizi;2;Acquisto di servizi;5;Utenze e canoni;999;Utenze e canoni per altri servizi n.a.c.;22-06-2021;
725;1;816;"141,52";"141,52";SICURITALIA IVRI S.P.A.;Z3827208DE;Fatt.n. 9117007948 del 14/06/2021 SERVIZI ISPETTIVI - MAGGIO 2021;21-06-2021;252;0;170;1;Spese correnti;3;Acquisto di beni e servizi;2;Acquisto di servizi;5;Utenze e canoni;999;Utenze e canoni per altri servizi n.a.c.;22-06-2021;
726;1;817;"69,54";"156,16";SICURITALIA IVRI S.P.A.;Z3827208DE;Fatt.n. 9117007948 del 14/06/2021 SERVIZI ISPETTIVI - MAGGIO 2021;21-06-2021;310;0;93;1;Spese correnti;3;Acquisto di beni e servizi;2;Acquisto di servizi;5;Utenze e canoni;999;Utenze e canoni per altri servizi n.a.c.;22-06-2021;
726;2;817;"86,62";"156,16";SICURITALIA IVRI S.P.A.;Z3827208DE;Fatt.n. 9117007948 del 14/06/2021 SERVIZI ISPETTIVI - MAGGIO 2021;21-06-2021;310;0;93;1;Spese correnti;3;Acquisto di beni e servizi;2;Acquisto di servizi;5;Utenze e canoni;999;Utenze e canoni per altri servizi n.a.c.;22-06-2021;
727;1;818;"42,70";"42,70";SICURITALIA IVRI S.P.A.;Z3827208DE;Fatt.n. 9117007948 del 14/06/2021 SERVIZI ISPETTIVI - MAGGIO 2021;21-06-2021;313;2;94;1;Spese correnti;3;Acquisto di beni e servizi;2;Acquisto di servizi;5;Utenze e canoni;999;Utenze e canoni per altri servizi n.a.c.;22-06-2021;
728;1;819;"42,70";"42,70";SICURITALIA IVRI S.P.A.;Z3827208DE;Fatt.n. 9117007948 del 14/06/2021 SERVIZI ISPETTIVI - MAGGIO 2021;21-06-2021;561;2;90;1;Spese correnti;3;Acquisto di beni e servizi;2;Acquisto di servizi;5;Utenze e canoni;999;Utenze e canoni per altri servizi n.a.c.;22-06-2021;
729;1;820;"207,52";"207,52";FERRONATO S.R.L.;Z7C26AD935;Fatt.n. P3 del 31/05/2021 FORNITURA MATERIALE;21-06-2021;531;0;279;1;Spese correnti;3;Acquisto di beni e servizi;1;Acquisto di beni;2;Altri beni di consumo;999;Altri beni e materiali di consumo n.a.c.;22-06-2021;
730;1;821;"268,40";"268,40";TIM S.P.A.;ZE429271DF;Fatt.n. 4220421800021778 del 10/06/2021 TRAFFICO TELEFONICO - 4 BIM 2021;21-06-2021;34;0;392;1;Spese correnti;3;Acquisto di beni e servizi;2;Acquisto di servizi;5;Utenze e canoni;999;Utenze e canoni per altri servizi n.a.c.;22-06-2021;
731;1;822;"122,00";"122,00";TIM S.P.A.;ZE429271DF;Fatt.n. 4220421800021778 del 10/06/2021 TRAFFICO TELEFONICO - 4 BIM 2021;21-06-2021;235;0;394;1;Spese correnti;3;Acquisto di beni e servizi;2;Acquisto di servizi;5;Utenze e canoni;999;Utenze e canoni per altri servizi n.a.c.;22-06-2021;
732;1;823;"122,00";"122,00";TIM S.P.A.;ZE429271DF;Fatt.n. 4220421800021778 del 10/06/2021 TRAFFICO TELEFONICO - 4 BIM 2021;21-06-2021;252;0;393;1;Spese correnti;3;Acquisto di beni e servizi;2;Acquisto di servizi;5;Utenze e canoni;999;Utenze e canoni per altri servizi n.a.c.;22-06-2021;
733;1;824;"122,00";"122,00";TIM S.P.A.;ZE429271DF;Fatt.n. 4220421800021778 del 10/06/2021 TRAFFICO TELEFONICO - 4 BIM 2021;21-06-2021;310;0;395;1;Spese correnti;3;Acquisto di beni e servizi;2;Acquisto di servizi;5;Utenze e canoni;999;Utenze e canoni per altri servizi n.a.c.;22-06-2021;
734;1;825;"122,00";"122,00";TIM S.P.A.;ZE429271DF;Fatt.n. 4220421800021778 del 10/06/2021 TRAFFICO TELEFONICO - 4 BIM 2021;21-06-2021;311;0;396;1;Spese correnti;3;Acquisto di beni e servizi;2;Acquisto di servizi;5;Utenze e canoni;999;Utenze e canoni per altri servizi n.a.c.;22-06-2021;
735;1;0;"102,40";"102,40";OMESSO NOMINATIVO NEL RISPETTO DELLA NORMATIVA SULLA PROTEZIONE DATI PERSONALI; ;LIQUIDAZIONE UTENTE G. C. FT. SERVIZIO ELETTRICO NAZIONALE N. 263556805039011 DEL 08.06.2021 BIMESTRE MAG.2021-GIU.2021.;21-06-2021;576;0;34;1;Spese correnti;4;Trasferimenti correnti;2;Trasferimenti correnti a Famiglie;2;Interventi assistenziali;999;Altri assegni e sussidi assistenziali;21-06-2021;
736;1;826;"1.781,82";"1.781,82";UNICOOPER SERVIZI S.C.R.L.;ZA530DF999;Fatt.n. 954 del 31/05/2021 PULIZIE EDIFICI COMUNALI - MAGGIO 2021;21-06-2021;34;2;61;1;Spese correnti;3;Acquisto di beni e servizi;2;Acquisto di servizi;13;Servizi ausiliari per il funzionamento dell'ente;2;Servizi di pulizia e lavanderia;22-06-2021;
737;1;827;"181,46";"181,46";TIM S.P.A.;6930022311;Fatt.n. 7X02103005 del 10/06/2021 TRAFFICO TELEFONICO - 4 BIM 2021;21-06-2021;34;0;398;1;Spese correnti;3;Acquisto di beni e servizi;2;Acquisto di servizi;5;Utenze e canoni;999;Utenze e canoni per altri servizi n.a.c.;22-06-2021;
738;1;828;"-72,21";"1.741,43";ALTO TREVIGIANO SERVIZI S.R.L.;Z2C320E4DB;Fatt.n. 62202100003061 del 23/04/2021 NOTA DI CREDITO SERVIZIO IDRICO - 1 TRIMESTRE 2021;21-06-2021;235;0;173;1;Spese correnti;3;Acquisto di beni e servizi;2;Acquisto di servizi;5;Utenze e canoni;5;Acqua;22-06-2021;
738;2;828;"-23,68";"1.741,43";ALTO TREVIGIANO SERVIZI S.R.L.;Z2C320E4DB;Fatt.n. 62202100003071 del 23/04/2021 NOTA DI CREDITO SERVIZIO IDRICO - 1 TRIMESTRE 2021;21-06-2021;235;0;173;1;Spese correnti;3;Acquisto di beni e servizi;2;Acquisto di servizi;5;Utenze e canoni;5;Acqua;22-06-2021;
738;3;828;"-3,88";"1.741,43";ALTO TREVIGIANO SERVIZI S.R.L.;Z2C320E4DB;SALDO Fatt.n. 62202100003062  del 23/04/2021 NOTA DI CREDITO SERVIZIO IDRICO - 1 TRIMESTRE 2021;21-06-2021;235;0;173;1;Spese correnti;3;Acquisto di beni e servizi;2;Acquisto di servizi;5;Utenze e canoni;5;Acqua;22-06-2021;
738;4;828;"-1,01";"1.741,43";ALTO TREVIGIANO SERVIZI S.R.L.;Z2C320E4DB;Fatt.n. 62202100003059 del 23/04/2021 NOTA DI CREDITO SERVIZIO IDRICO  - 1 TRIMESTRE 2021;21-06-2021;235;0;173;1;Spese correnti;3;Acquisto di beni e servizi;2;Acquisto di servizi;5;Utenze e canoni;5;Acqua;22-06-2021;
738;5;828;"-0,96";"1.741,43";ALTO TREVIGIANO SERVIZI S.R.L.;Z2C320E4DB;SALDO Fatt.n. 62202100003056  del 23/04/2021 NOTA DI CREDITO SERVIZIO IDRICO - 1 TRIMESTRE 2021;21-06-2021;235;0;173;1;Spese correnti;3;Acquisto di beni e servizi;2;Acquisto di servizi;5;Utenze e canoni;5;Acqua;22-06-2021;
738;6;828;"15,47";"1.741,43";ALTO TREVIGIANO SERVIZI S.R.L.;Z2C320E4DB;Fatt.n. 62202100003070 del 23/04/2021 SERVIZIO IDRICO - 1 TRIMESTRE 2021;21-06-2021;235;0;173;1;Spese correnti;3;Acquisto di beni e servizi;2;Acquisto di servizi;5;Utenze e canoni;5;Acqua;22-06-2021;
738;7;828;"192,15";"1.741,43";ALTO TREVIGIANO SERVIZI S.R.L.;Z2C320E4DB;Fatt.n. 62202100003069 del 23/04/2021 SERVIZIO IDRICO 1 TRIMESTRE 2021;21-06-2021;235;0;173;1;Spese correnti;3;Acquisto di beni e servizi;2;Acquisto di servizi;5;Utenze e canoni;5;Acqua;22-06-2021;
738;8;828;"1.635,55";"1.741,43";ALTO TREVIGIANO SERVIZI S.R.L.;Z2C320E4DB;Fatt.n. 62202100003063 del 23/04/2021 SERVIZIO IDRICO - 1 TRIMESTRE 2021;21-06-2021;235;0;173;1;Spese correnti;3;Acquisto di beni e servizi;2;Acquisto di servizi;5;Utenze e canoni;5;Acqua;22-06-2021;
739;1;829;"125,62";"125,62";ALTO TREVIGIANO SERVIZI S.R.L.;Z2C320E4DB;Fatt.n. 62202100003057 del 23/04/2021 SERVIZIO IDRICO - 1 TRIMESTRE 2021;21-06-2021;310;0;175;1;Spese correnti;3;Acquisto di beni e servizi;2;Acquisto di servizi;5;Utenze e canoni;5;Acqua;22-06-2021;
740;1;830;"8,24";"8,24";ALTO TREVIGIANO SERVIZI S.R.L.;Z2C320E4DB;Fatt.n. 62202100003050 del 23/04/2021 SERVIZIO IDRICO - 1 TRIMESTRE 2021;21-06-2021;313;2;176;1;Spese correnti;3;Acquisto di beni e servizi;2;Acquisto di servizi;5;Utenze e canoni;5;Acqua;22-06-2021;
741;1;831;"7,74";"17,71";ALTO TREVIGIANO SERVIZI S.R.L.;Z2C320E4DB;Fatt.n. 62202100003064 del 23/04/2021 SERVIZIO IDRICO - APRILE 2021;21-06-2021;530;0;177;1;Spese correnti;3;Acquisto di beni e servizi;2;Acquisto di servizi;5;Utenze e canoni;5;Acqua;22-06-2021;
741;2;831;"9,97";"17,71";ALTO TREVIGIANO SERVIZI S.R.L.;Z2C320E4DB;Fatt.n. 62202100003058 del 23/04/2021 SERVIZIO IDRICO - 1 TRIMESTRE 2021;21-06-2021;530;0;177;1;Spese correnti;3;Acquisto di beni e servizi;2;Acquisto di servizi;5;Utenze e canoni;5;Acqua;22-06-2021;
742;1;832;"-0,31";"293,97";ALTO TREVIGIANO SERVIZI S.R.L.;Z2C320E4DB;Fatt.n. 62202100003072 del 23/04/2021 SERVIZIO IDRICO - 1 TRIMESTRE 2021;21-06-2021;561;2;178;1;Spese correnti;3;Acquisto di beni e servizi;2;Acquisto di servizi;5;Utenze e canoni;5;Acqua;22-06-2021;
742;2;832;"32,69";"293,97";ALTO TREVIGIANO SERVIZI S.R.L.;Z2C320E4DB;SALDO Fatt.n. 62202100003074  del 23/04/2021 SERVIZIO IDRICO - 1 TRIMESTRE 2021;21-06-2021;561;2;178;1;Spese correnti;3;Acquisto di beni e servizi;2;Acquisto di servizi;5;Utenze e canoni;5;Acqua;22-06-2021;
742;3;832;"261,59";"293,97";ALTO TREVIGIANO SERVIZI S.R.L.;Z2C320E4DB;Fatt.n. 62202100003049 del 23/04/2021 SERVIZIO IDRICO - 1 TRIMESTRE 2021;21-06-2021;561;2;178;1;Spese correnti;3;Acquisto di beni e servizi;2;Acquisto di servizi;5;Utenze e canoni;5;Acqua;22-06-2021;
743;1;833;"-3,31";"1.232,09";ALTO TREVIGIANO SERVIZI S.R.L.;Z2C320E4DB;Fatt.n. 62202100003055 del 23/04/2021 NOTA DI CREDITO SERVIZIO IDRICO 1 TRIMESTRE 2021;21-06-2021;591;2;179;1;Spese correnti;3;Acquisto di beni e servizi;2;Acquisto di servizi;5;Utenze e canoni;5;Acqua;22-06-2021;
743;2;833;"-1,61";"1.232,09";ALTO TREVIGIANO SERVIZI S.R.L.;Z2C320E4DB;Fatt.n. 62202100003066 del 23/04/2021 NOTA DI CREDITO SERVIZIO IDRICO - 1 TRIMESTRE 2021;21-06-2021;591;2;179;1;Spese correnti;3;Acquisto di beni e servizi;2;Acquisto di servizi;5;Utenze e canoni;5;Acqua;22-06-2021;
743;3;833;"-0,07";"1.232,09";ALTO TREVIGIANO SERVIZI S.R.L.;Z2C320E4DB;Fatt.n. 62202100003068 del 23/04/2021 NOTA DI CREDITO SERVIZIO IDRICO - 1 TRIMESTRE 2021;21-06-2021;591;2;179;1;Spese correnti;3;Acquisto di beni e servizi;2;Acquisto di servizi;5;Utenze e canoni;5;Acqua;22-06-2021;
743;4;833;"0,22";"1.232,09";ALTO TREVIGIANO SERVIZI S.R.L.;Z2C320E4DB;Fatt.n. 62202100003052 del 23/04/2021 SERVIZIO IDRICO - 1 TRIMESTRE 2021;21-06-2021;591;2;179;1;Spese correnti;3;Acquisto di beni e servizi;2;Acquisto di servizi;5;Utenze e canoni;5;Acqua;22-06-2021;
743;5;833;"0,31";"1.232,09";ALTO TREVIGIANO SERVIZI S.R.L.;Z2C320E4DB;Fatt.n. 62202100003053 del 23/04/2021 SERVIZIO IDRICO - 1 TRIMESTRE 2021;21-06-2021;591;2;179;1;Spese correnti;3;Acquisto di beni e servizi;2;Acquisto di servizi;5;Utenze e canoni;5;Acqua;22-06-2021;
743;6;833;"0,41";"1.232,09";ALTO TREVIGIANO SERVIZI S.R.L.;Z2C320E4DB;Fatt.n. 62202100003051 del 23/04/2021 SERVIZIO IDRICO - 1 TRIMESTRE 2021;21-06-2021;591;2;179;1;Spese correnti;3;Acquisto di beni e servizi;2;Acquisto di servizi;5;Utenze e canoni;5;Acqua;22-06-2021;
743;7;833;"9,82";"1.232,09";ALTO TREVIGIANO SERVIZI S.R.L.;Z2C320E4DB;Fatt.n. 62202100003075 del 23/04/2021 SERVIZIO IDRICO - 1 TRIMESTRE 2021;21-06-2021;591;2;179;1;Spese correnti;3;Acquisto di beni e servizi;2;Acquisto di servizi;5;Utenze e canoni;5;Acqua;22-06-2021;
743;8;833;"10,58";"1.232,09";ALTO TREVIGIANO SERVIZI S.R.L.;Z2C320E4DB;Fatt.n. 62202100003067 del 23/04/2021 SERVIZIO IDRICO - 1 TRIMESTRE 2021;21-06-2021;591;2;179;1;Spese correnti;3;Acquisto di beni e servizi;2;Acquisto di servizi;5;Utenze e canoni;5;Acqua;22-06-2021;
743;9;833;"11,10";"1.232,09";ALTO TREVIGIANO SERVIZI S.R.L.;Z2C320E4DB;Fatt.n. 62202100003054 del 23/04/2021 SERVIZIO IDRICO - 1 TRIMESTRE 2021;21-06-2021;591;2;179;1;Spese correnti;3;Acquisto di beni e servizi;2;Acquisto di servizi;5;Utenze e canoni;5;Acqua;22-06-2021;
743;10;833;"21,25";"1.232,09";ALTO TREVIGIANO SERVIZI S.R.L.;Z2C320E4DB;Fatt.n. 62202100003065 del 23/04/2021 SERVIZIO IDRICO - 1 TRIMESTRE 2021;21-06-2021;591;2;179;1;Spese correnti;3;Acquisto di beni e servizi;2;Acquisto di servizi;5;Utenze e canoni;5;Acqua;22-06-2021;
743;11;833;"59,42";"1.232,09";ALTO TREVIGIANO SERVIZI S.R.L.;Z2C320E4DB;Fatt.n. 62202100003073 del 23/04/2021 SERVIZIO IDRICO - 1 TRIMESTRE 2021;21-06-2021;591;2;179;1;Spese correnti;3;Acquisto di beni e servizi;2;Acquisto di servizi;5;Utenze e canoni;5;Acqua;22-06-2021;
743;12;833;"1.123,97";"1.232,09";ALTO TREVIGIANO SERVIZI S.R.L.;Z2C320E4DB;Fatt.n. 62202100003060 del 23/04/2021 SERVIZIO IDRICO - 1 TRIMESTRE 2021;21-06-2021;591;2;179;1;Spese correnti;3;Acquisto di beni e servizi;2;Acquisto di servizi;5;Utenze e canoni;5;Acqua;22-06-2021;
744;1;834;"1.500,00";"1.500,00";FONDAZIONE LA FORNACE DELL'INNOVAZIONE; ;SALDO QUOTA DEL PROGETTO HI e SLOW TREKKING DENOMINATO 27 CASTELLI + 2 ROCCHE ALLA FONDAZIONE LA FORNACE DELLINNOVAZIONE.;22-06-2021;364;0;151;1;Spese correnti;4;Trasferimenti correnti;1;Trasferimenti correnti a Amministrazioni Pubbliche;2;Trasferimenti correnti a Amministrazioni Locali;18;Trasferimenti correnti a Consorzi di enti locali;22-06-2021;
745;1;835;"1.180,00";"1.180,00";FONDAZIONE LA FORNACE DELL'INNOVAZIONE; ;SALDO QUOTA DEL PROGETTO HI e SLOW TREKKING DENOMINATO 27 CASTELLI + 2 ROCCHE ALLA FONDAZIONE LA FORNACE DELLINNOVAZIONE.;22-06-2021;365;0;152;1;Spese correnti;4;Trasferimenti correnti;1;Trasferimenti correnti a Amministrazioni Pubbliche;2;Trasferimenti correnti a Amministrazioni Locali;18;Trasferimenti correnti a Consorzi di enti locali;22-06-2021;
746;1;0;"40,00";"40,00";KAIROSFORMA SRL IMPRESA SOCIALE;Z0F31C7580;Fatt.n. 2/104 del 15/06/2021 SEMINARIO WEBINAR;24-06-2021;67;0;148;1;Spese correnti;3;Acquisto di beni e servizi;2;Acquisto di servizi;4;Acquisto di servizi per formazione e addestramento del personale dell'ente;4;Acquisto di servizi per formazione obbligatoria;24-06-2021;
747;1;0;"10.370,00";"10.370,00";BOXXAPPS S.R.L.;Z723203983;Fatt.n. 1/210444 del 14/06/2021 SERVIZI RELATIVI AL SERVER;24-06-2021;39;0;180;1;Spese correnti;3;Acquisto di beni e servizi;2;Acquisto di servizi;19;Servizi informatici e di telecomunicazioni;1;Gestione e manutenzione applicazioni;24-06-2021;
748;1;0;"3.971,10";"3.971,10";GIROLAMETTO GIORGIO;Z422D22095;"Fatt.n. 11 del 11/06/2021 PROGETTAZIONE, COMPUTO METRICO PER TRATTO DI MARCIAPIEDE";24-06-2021;1034;0;182;2;Spese in conto capitale;2;Investimenti fissi lordi e acquisto di terreni;1;Beni materiali;9;Beni immobili;12;Infrastrutture stradali;24-06-2021;
749;1;0;"1.686,00";"1.686,00";CASA DI RIPOSO 'AITA'; ;Fatt.n. 251/B del 14/06/2021 PRESTAZIONI SOCIALI - L.V. MAGGIO 2021;24-06-2021;560;0;43;1;Spese correnti;3;Acquisto di beni e servizi;2;Acquisto di servizi;15;Contratti di servizio pubblico;8;Contratti di servizio di assistenza sociale residenziale e semiresidenziale;24-06-2021;
750;1;0;"1.043,10";"1.043,10";F.A.P.  DI MARCOLONGO LUIGI & C. S.N.C.;Z3131E224E;Fatt.n. 121/FE del 12/06/2021 VESTIARIO PER POLIZIA LOCALE;24-06-2021;175;0;161;1;Spese correnti;3;Acquisto di beni e servizi;1;Acquisto di beni;2;Altri beni di consumo;4;Vestiario;24-06-2021;
751;1;0;"435,00";"435,00";MAXI DI SRL; ;Fatt.n. 2908005211 del 11/06/2021 ACQUISTO PRODOTTI PER EMERGENZA COVID;24-06-2021;563;0;463;1;Spese correnti;3;Acquisto di beni e servizi;1;Acquisto di beni;2;Altri beni di consumo;11;Generi alimentari;24-06-2021;
752;1;0;"4.039,60";"4.039,60";CASA DI RIPOSO 'AITA'; ;Fatt.n. 246/B del 11/06/2021 SERVIZIO DI A.D. - MAGGIO 2021;24-06-2021;562;1;240;1;Spese correnti;3;Acquisto di beni e servizi;2;Acquisto di servizi;15;Contratti di servizio pubblico;9;Contratti di servizio di assistenza sociale domiciliare;24-06-2021;
753;1;0;"1.438,19";"1.438,19";NOIGROUP Coop. Soc. a R.L.;8551409DEF;Fatt.n. 370 del 31/05/2021 SERVIZIO GESTIONE BIBLIOTECA - MAGGIO 2021;24-06-2021;302;1;28;1;Spese correnti;3;Acquisto di beni e servizi;2;Acquisto di servizi;16;Servizi amministrativi;999;Altre spese per servizi amministrativi;24-06-2021;
754;1;0;"812,69";"812,69";NOIGROUP Coop. Soc. a R.L.;ZDE2A28443;Fatt.n. 371 del 31/05/2021 SERVIZIO AL MUSEO - MAGGIO 2021;24-06-2021;303;0;490;1;Spese correnti;3;Acquisto di beni e servizi;2;Acquisto di servizi;99;Altri servizi;999;Altri servizi diversi n.a.c.;24-06-2021;
755;1;0;"77,02";"77,02";FARMACIE PIU' DI S.A.S. DT RI C. E N.; ;Fatt.n. 18C del 31/05/2021 ACQUISTO BENI PER EMERGENZA COVID;24-06-2021;563;0;468;1;Spese correnti;3;Acquisto di beni e servizi;1;Acquisto di beni;2;Altri beni di consumo;11;Generi alimentari;24-06-2021;
756;1;0;"5.515,87";"5.515,87";Mobilita' di Marca S.P.A.;7976331491;Fatt.n. 000289 del 27/05/2021 SERVIZIO DI TRASPORTO SCOLASTICO  - MARZO 2021;24-06-2021;275;1;376;1;Spese correnti;3;Acquisto di beni e servizi;2;Acquisto di servizi;15;Contratti di servizio pubblico;2;Contratti di servizio di trasporto scolastico;24-06-2021;
757;1;0;"1.241,58";"1.241,58";E.N.P.A. ENTE NAZIONALE PROTEZIONE ANIMALI ONLUS;Z883204553;Fatt.n. 647/PA del 12/04/2021 CUSTODIA E MANTENIMENTO CANI: GENNAIO-MARZO 2021;24-06-2021;180;0;181;1;Spese correnti;3;Acquisto di beni e servizi;2;Acquisto di servizi;15;Contratti di servizio pubblico;11;Contratti di servizio per la lotta al randagismo;24-06-2021;
758;1;0;"6.420,02";"6.420,02";CASA DI RIPOSO 'AITA'; ;Fatt.n. 293/C del 08/06/2021 FORNITURA PASTI MENSA - MAGGIO 2021;24-06-2021;274;1;472;1;Spese correnti;3;Acquisto di beni e servizi;2;Acquisto di servizi;15;Contratti di servizio pubblico;6;Contratti di servizio per le mense scolastiche;24-06-2021;
759;1;0;"86,33";"86,33";PLT PUREGREEN;7134285639;Fatt.n. 20210040003309 del 11/06/2021 FORNITURA ENERGIA ELETTRICA MUNICIPIO - MAGGIO 2021;24-06-2021;34;0;207;1;Spese correnti;3;Acquisto di beni e servizi;2;Acquisto di servizi;5;Utenze e canoni;4;Energia elettrica;24-06-2021;
760;1;0;"89,17";"89,17";PLT PUREGREEN;7134285639;Fatt.n. 20210040003303 del 11/06/2021 FORNITURA ENERGIA ELETTRICA MAGAZZINO - MAGGIO 2021;24-06-2021;71;0;208;1;Spese correnti;3;Acquisto di beni e servizi;2;Acquisto di servizi;5;Utenze e canoni;4;Energia elettrica;24-06-2021;
761;1;0;"169,84";"385,91";PLT PUREGREEN;7134285639;Fatt.n. 20210040003314 del 11/06/2021 FORNITURA ENERGIA ELETTRICA SCUOLE - MAGGIO 2021;24-06-2021;235;0;209;1;Spese correnti;3;Acquisto di beni e servizi;2;Acquisto di servizi;5;Utenze e canoni;4;Energia elettrica;24-06-2021;
761;2;0;"216,07";"385,91";PLT PUREGREEN;7134285639;Fatt.n. 20210040003310 del 11/06/2021 FORNITURA ENERGIA ELETTRICA SCUOLA CA' RAINATI - MAGGIO 2021;24-06-2021;235;0;209;1;Spese correnti;3;Acquisto di beni e servizi;2;Acquisto di servizi;5;Utenze e canoni;4;Energia elettrica;24-06-2021;
762;1;0;"770,30";"770,30";PLT PUREGREEN;7134285639;Fatt.n. 20210040003312 del 11/06/2021 FORNITURA ENERGIA ELETTRICA SCUOLA CAPOLUOGO - MAGGIO 2021;24-06-2021;252;0;210;1;Spese correnti;3;Acquisto di beni e servizi;2;Acquisto di servizi;5;Utenze e canoni;4;Energia elettrica;24-06-2021;
763;1;0;"446,86";"446,86";PLT PUREGREEN;7134285639;Fatt.n. 20210040003301 del 11/06/2021 FORNITURA ENERGIA ELETTRICA VILLA RUBELLI - MAGGIO 2021;24-06-2021;310;0;212;1;Spese correnti;3;Acquisto di beni e servizi;2;Acquisto di servizi;5;Utenze e canoni;4;Energia elettrica;24-06-2021;
764;1;0;"44,56";"250,24";PLT PUREGREEN;7134285639;Fatt.n. 20210040003304 del 11/06/2021 FORNITURA ENERGIA ELETTRICA CIMITERO - MAGGIO 2021;24-06-2021;413;0;211;1;Spese correnti;3;Acquisto di beni e servizi;2;Acquisto di servizi;5;Utenze e canoni;4;Energia elettrica;24-06-2021;
764;2;0;"48,03";"250,24";PLT PUREGREEN;7134285639;Fatt.n. 20210040003313 del 11/06/2021 FORNITURA ENERGIA ELETTRICA CIMITERO - MAGGIO 2021;24-06-2021;413;0;211;1;Spese correnti;3;Acquisto di beni e servizi;2;Acquisto di servizi;5;Utenze e canoni;4;Energia elettrica;24-06-2021;
764;3;0;"64,65";"250,24";PLT PUREGREEN;7134285639;Fatt.n. 20210040003311 del 11/06/2021 FORNITURA ENERGIA ELETTRICA CIMITERO - MAGGIO 2021;24-06-2021;413;0;211;1;Spese correnti;3;Acquisto di beni e servizi;2;Acquisto di servizi;5;Utenze e canoni;4;Energia elettrica;24-06-2021;
764;4;0;"93,00";"250,24";PLT PUREGREEN;7134285639;Fatt.n. 20210040003308 del 11/06/2021 FORNITURA ENERGIA ELETTRICA CIMITERO CA' RAINATI - MAGGIO 2021;24-06-2021;413;0;211;1;Spese correnti;3;Acquisto di beni e servizi;2;Acquisto di servizi;5;Utenze e canoni;4;Energia elettrica;24-06-2021;
765;1;0;"102,16";"442,92";PLT PUREGREEN;7134285639;Fatt.n. 20210040003305 del 11/06/2021 FORNITURA ENERGIA ELETTRICA STADIO - MAGGIO 2021;24-06-2021;530;0;214;1;Spese correnti;3;Acquisto di beni e servizi;2;Acquisto di servizi;5;Utenze e canoni;4;Energia elettrica;24-06-2021;
765;2;0;"340,76";"442,92";PLT PUREGREEN;7134285639;Fatt.n. 20210040003302 del 11/06/2021 FORNITURA ENERGIA ELETTRICA PALESTRA - MAGGIO 2021;24-06-2021;530;0;214;1;Spese correnti;3;Acquisto di beni e servizi;2;Acquisto di servizi;5;Utenze e canoni;4;Energia elettrica;24-06-2021;
766;1;0;"86,88";"494,64";PLT PUREGREEN;7134285639;Fatt.n. 20210040003307 del 11/06/2021 FORNITURA ENERGIA ELETTRICA EX SCUOLA SOPRA CASTELLO - MAGGIO 2021;24-06-2021;561;2;215;1;Spese correnti;3;Acquisto di beni e servizi;2;Acquisto di servizi;5;Utenze e canoni;4;Energia elettrica;24-06-2021;
766;2;0;"407,76";"494,64";PLT PUREGREEN;7134285639;Fatt.n. 20210040003315 del 11/06/2021 FORNITURA ENERGIA ELETTRICA  CENTRO POLIVALENTE - MAGGIO 2021;24-06-2021;561;2;215;1;Spese correnti;3;Acquisto di beni e servizi;2;Acquisto di servizi;5;Utenze e canoni;4;Energia elettrica;24-06-2021;
767;1;0;"7.161,91";"7.161,91";PLT PUREGREEN;7134285639;Fatt.n. 20210040003306 del 11/06/2021 FORNITURA ENERGIA ELETTRICA I.P. - MAGGIO 2021;24-06-2021;600;0;216;1;Spese correnti;3;Acquisto di beni e servizi;2;Acquisto di servizi;5;Utenze e canoni;4;Energia elettrica;24-06-2021;
768;1;0;"-1.057,74";"1.057,74";KD DISINFESTAZIONI & DERATTIZZAZIONI S.R.L.;ZF631E43CB;Fatt.n. FPA 18/21 del 10/06/2021 NOTA DI CREDITO PER FT ERRATA;25-06-2021;510;1;163;1;Spese correnti;3;Acquisto di beni e servizi;2;Acquisto di servizi;99;Altri servizi;999;Altri servizi diversi n.a.c.;25-06-2021;
768;2;0;"1.057,74";"1.057,74";KD DISINFESTAZIONI & DERATTIZZAZIONI S.R.L.;ZF631E43CB;Fatt.n. FPA 19/21 del 10/06/2021 DERATIZZAZIONE;25-06-2021;510;1;163;1;Spese correnti;3;Acquisto di beni e servizi;2;Acquisto di servizi;99;Altri servizi;999;Altri servizi diversi n.a.c.;25-06-2021;
768;3;0;"1.057,74";"1.057,74";KD DISINFESTAZIONI & DERATTIZZAZIONI S.R.L.;ZF631E43CB;Fatt.n. FPA 6/21 del 31/03/2021 DERATIZZAZIONE;25-06-2021;510;1;163;1;Spese correnti;3;Acquisto di beni e servizi;2;Acquisto di servizi;99;Altri servizi;999;Altri servizi diversi n.a.c.;25-06-2021;
770;1;0;"875,00";"875,00";CAVEAGNA EMANUELA;ZA93215DCF;COMPENSO PER SVOLGIMENTO SPETTACOLO CIRCENSE PER BAMBINI E FAMIGLIE DENOMINATO DAIANA ORFEI SHOW DEL 13.06.2021.;28-06-2021;305;1;184;1;Spese correnti;3;Acquisto di beni e servizi;2;Acquisto di servizi;2;"Organizzazione eventi, pubblicita` e servizi per trasferta";5;Organizzazione e partecipazione a manifestazioni e convegni;28-06-2021;
771;1;0;"23.045,96";"23.045,96";CRESTANI COSTRUZIONI GENERALI S.R.L.;ZC6321B50B;Fatt.n. FATTPA 18_21 del 15/06/2021 LAVORI DI ASFALTATURA VIE COMUNALI;28-06-2021;1007;0;186;2;Spese in conto capitale;2;Investimenti fissi lordi e acquisto di terreni;1;Beni materiali;9;Beni immobili;12;Infrastrutture stradali;28-06-2021;
772;1;0;"522,62";"522,62";AS.COM SERVIZI DEL MANDAMENTO S.R.L.; ;Fatt.n. 00022/02 del 10/06/2021 LOCAZIONE CENTRO PER L'IMPIEGO 16/06-15/09;28-06-2021;515;0;121;1;Spese correnti;4;Trasferimenti correnti;1;Trasferimenti correnti a Amministrazioni Pubbliche;2;Trasferimenti correnti a Amministrazioni Locali;17;Trasferimenti correnti a altri enti e agenzie regionali e sub regionali;28-06-2021;
